Workbook

Sheet Orçamento
O3: UNIDADE ESCOLAR | V3: CÓDIGO INEP
O4: COLÉGIO ESTADUAL DA POLÍCIA MILITAR DE GOIÁS SILVIO DE CASTRO RIBEIRO - JARAGUÁ | V4: 52024628
A6: Nmax | M6: Ajustar altura? | O6: OBRA | S6: DATA | V6: CIDADE
A7: =MAX($C$18:$C$323) -> 3 | M7: NÃO | O7: REFORMA E AMPLIAÇÃO | S7: 2020-03-31 | V7: JARAGUÁ
O9: CRE | R9: ENDEREÇO | V9: REFERÊNCIA AGETOP
O10: GOIANÉSIA | R10: RUA MARIA DA MATA RIOS S/N, CENTRO, CEP:76330-000 | V10: DEZ/18 | W10: ONERADA
O12: ÁREA EXISTENTE (M²) | R12: ÁREA A CONSTRUIR (M²) | S12: ÁREA TOTAL CONSTRUÍDA (M²) | V12: REFERÊNCIA SINAPI
O13: 2087.91 | R13: 190.26 | S13: 2278.17 | V13: MAR/19 | W13: ONERADA
L15: FILTRO | O15: PLANILHA ORÇAMENTÁRIA
A16: Nível E | B16: Save Nivel | C16: Nível C | D16: Altura | E16: n1 | F16: n2 | G16: n3 | H16: n4 | I16: n5 | J16: Czero | K16: Cnível | L16: ↓ | M16: Nível | N16: Nível Corrigido | O16: ITEM | P16: TABELA | Q16: CODIGO | R16: DESCRIÇÃO DOS SERVIÇOS | S16: UNID | T16: QUANT | U16: MAT | V16: MO | W16: T.SERVIÇO | X16: OBSERVAÇÕES¹
A17: =CHOOSE(1+LOG(1+2*(ORÇAMENTO.Nivel="Nível 1")+4*(ORÇAMENTO.Nivel="Nível 2")+8*(ORÇAMENTO.Nivel="Nível 3")+16*(ORÇAMENTO.Nivel="Nível 4")+32*(ORÇAMENTO.Nivel="Serviço"),2),0,1,2,3,4,"S") -> S | B17: =IF(OR(C17="s",C17=0),OFFSET(B17,-1,0),C17) -> Save Nivel | C17: =IF(OFFSET(C17,-1,0)="L",1,IF(OFFSET(C17,-1,0)=1,2,IF(OR(A17="s",A17=0),"S",IF(AND(OFFSET(C17,-1,0)=2,A17=4),3,IF(AND(OR(OFFSET(C17,-1,0)="s",OFFSET(C17,-1,0)=0),A17<>"s",A17>OFFSET(B17,-1,0)),OFFSET(B17,-1,0),A17))))) -> S | D17: =IF(OR(C17="S",C17=0),0,IF(ISERROR(K17),J17,SMALL(J17:K17,1))) -> 0 | E17: =IF($C17=1,OFFSET(E17,-1,0)+1,OFFSET(E17,-1,0)) -> n1 | F17: =IF($C17=1,0,IF($C17=2,OFFSET(F17,-1,0)+1,OFFSET(F17,-1,0))) -> n2 | G17: =IF(AND($C17<=2,$C17<>0),0,IF($C17=3,OFFSET(G17,-1,0)+1,OFFSET(G17,-1,0))) -> n3 | H17: =IF(AND($C17<=3,$C17<>0),0,IF($C17=4,OFFSET(H17,-1,0)+1,OFFSET(H17,-1,0))) -> n4 | I17: =IF(AND($C17<=4,$C17<>0),0,IF(AND($C17="S",$W17>0),OFFSET(I17,-1,0)+1,OFFSET(I17,-1,0))) -> n5 | J17: =IF(OR($C17="S",$C17=0),0,MATCH(0,OFFSET($D17,1,$C17,ROW($C$323)-ROW($C17)),0)) -> 0 | K17: =IF(OR($C17="S",$C17=0),0,MATCH(OFFSET($D17,0,$C17)+1,OFFSET($D17,1,$C17,ROW($C$323)-ROW($C17)),0)) -> 0 | M17: Serviço | N17: Serviço | O17: - | P17: SINAPI | R17: (sem código) | S17: - | U17: 0 | V17: 0 | W17: 0
A18: 0 | C18: L | D18: =COUNTA(OFFSET(D18,1,0):D$323) -> 304 | E18: =LEFT(O19,1)-1 -> 0 | L18: F | M18: LOTE | N18: LOTE | O18: REFORMA E AMPLIAÇÃO - COLÉGIO ESTADUAL DA POLÍCIA MILITAR DE GOIÁS SILVIO DE CASTRO RIBEIRO - JARAGUÁ | W18: 0
A19: 1 | B19: =IF(OR(C19="s",C19=0),OFFSET(B19,-1,0),C19) -> 1 | C19: =IF(OFFSET(C19,-1,0)="L",1,IF(OFFSET(C19,-1,0)=1,2,IF(OR(A19="s",A19=0),"S",IF(AND(OFFSET(C19,-1,0)=2,A19=4),3,IF(AND(OR(OFFSET(C19,-1,0)="s",OFFSET(C19,-1,0)=0),A19<>"s",A19>OFFSET(B19,-1,0)),OFFSET(B19,-1,0),A19))))) -> 1 | D19: =IF(OR(C19="S",C19=0),0,IF(ISERROR(K19),J19,SMALL(J19:K19,1))) -> 135 | E19: =IF($C19=1,OFFSET(E19,-1,0)+1,OFFSET(E19,-1,0)) -> 1 | F19: =IF($C19=1,0,IF($C19=2,OFFSET(F19,-1,0)+1,OFFSET(F19,-1,0))) -> 0 | G19: =IF(AND($C19<=2,$C19<>0),0,IF($C19=3,OFFSET(G19,-1,0)+1,OFFSET(G19,-1,0))) -> 0 | H19: =IF(AND($C19<=3,$C19<>0),0,IF($C19=4,OFFSET(H19,-1,0)+1,OFFSET(H19,-1,0))) -> 0 | I19: 0 | J19: =IF(OR($C19="S",$C19=0),0,MATCH(0,OFFSET($D19,1,$C19,ROW($C$323)-ROW($C19)),0)) -> 304 | K19: =IF(OR($C19="S",$C19=0),0,MATCH(OFFSET($D19,0,$C19)+1,OFFSET($D19,1,$C19,ROW($C$323)-ROW($C19)),0)) -> 135 | L19: F | M19: Nível 1 | N19: Nível 1 | O19: 1. | P19: AGETOP | R19: REFORMA | W19: 0
A20: 2 | B20: =IF(OR(C20="s",C20=0),OFFSET(B20,-1,0),C20) -> 2 | C20: =IF(OFFSET(C20,-1,0)="L",1,IF(OFFSET(C20,-1,0)=1,2,IF(OR(A20="s",A20=0),"S",IF(AND(OFFSET(C20,-1,0)=2,A20=4),3,IF(AND(OR(OFFSET(C20,-1,0)="s",OFFSET(C20,-1,0)=0),A20<>"s",A20>OFFSET(B20,-1,0)),OFFSET(B20,-1,0),A20))))) -> 2 | D20: =IF(OR(C20="S",C20=0),0,IF(ISERROR(K20),J20,SMALL(J20:K20,1))) -> 7 | E20: =IF($C20=1,OFFSET(E20,-1,0)+1,OFFSET(E20,-1,0)) -> 1 | F20: =IF($C20=1,0,IF($C20=2,OFFSET(F20,-1,0)+1,OFFSET(F20,-1,0))) -> 1 | G20: =IF(AND($C20<=2,$C20<>0),0,IF($C20=3,OFFSET(G20,-1,0)+1,OFFSET(G20,-1,0))) -> 0 | H20: =IF(AND($C20<=3,$C20<>0),0,IF($C20=4,OFFSET(H20,-1,0)+1,OFFSET(H20,-1,0))) -> 0 | I20: 0 | J20: 134 | K20: 7 | M20: Nível 2 | N20: Nível 2 | O20: - | P20: AGETOP | R20: SERVIÇOS PRELIMINARES | W20: 0
A21: S | B21: =IF(OR(C21="s",C21=0),OFFSET(B21,-1,0),C21) -> 2 | C21: =IF(OFFSET(C21,-1,0)="L",1,IF(OFFSET(C21,-1,0)=1,2,IF(OR(A21="s",A21=0),"S",IF(AND(OFFSET(C21,-1,0)=2,A21=4),3,IF(AND(OR(OFFSET(C21,-1,0)="s",OFFSET(C21,-1,0)=0),A21<>"s",A21>OFFSET(B21,-1,0)),OFFSET(B21,-1,0),A21))))) -> S | D21: =IF(OR(C21="S",C21=0),0,IF(ISERROR(K21),J21,SMALL(J21:K21,1))) -> 0 | E21: 1 | F21: 1 | G21: 0 | H21: 0 | I21: 0 | J21: 0 | K21: 0 | M21: Serviço | N21: Serviço | O21: - | P21: AGETOP | Q21: 20109 | R21: DEM.PISO CIMENT.SOBRE LASTRO CONC.C/TR.ATE CB. E CARGA | S21: m2 | T21: 47 | W21: 0
A22: S | B22: 2 | C22: S | D22: 0 | E22: 1 | F22: 1 | G22: 0 | H22: 0 | I22: 0 | J22: 0 | K22: 0 | M22: Serviço | N22: Serviço | O22: - | P22: SINAPI | Q22: 97622 | R22: DEMOLIÇÃO DE ALVENARIA DE BLOCO FURADO, DE FORMA MANUAL, SEM REAPROVEITAMENTO. AF_12/2017 | S22: M3 | T22: 0.45 | W22: 0 | X22: Referência: AGETOP - 20118
A23: S | B23: 2 | C23: S | D23: 0 | E23: 1 | F23: 1 | G23: 0 | H23: 0 | I23: 0 | J23: 0 | K23: 0 | M23: Serviço | N23: Serviço | O23: - | P23: SINAPI | Q23: 74209/1 | R23: PLACA DE OBRA EM CHAPA DE ACO GALVANIZADO | S23: M2 | T23: 4.5 | W23: 0 | X23: Referência: AGETOP - 21301
A24: S | B24: 2 | C24: S | D24: 0 | E24: 1 | F24: 1 | G24: 0 | H24: 0 | I24: 0 | J24: 0 | K24: 0 | M24: Serviço | N24: Serviço | O24: - | P24: AGETOP | Q24: 72080 | R24: POSTE/TRAFO - CAMINHÃO MUNCK 12 TON. (MÍNIMO 4H/DIA) | S24: H | T24: 4 | W24: 0
A25: S | B25: 2 | C25: S | D25: 0 | E25: 1 | F25: 1 | G25: 0 | H25: 0 | I25: 0 | J25: 0 | K25: 0 | M25: Serviço | N25: Serviço | O25: - | P25: AGETOP | Q25: 20107 | R25: CORTE/DESTOC./RETIRADA/REATERRO (MANUAIS) DE ÁRVORE GRANDE PORTE ( H = 8 A 10 M / DIÂMETRO TRONCO 60 A 70CM E COPA DE 10 A 13M ) C/TRANSP.ATE C.B.E CARGA | S25: Un | T25: 1 | W25: 0
A26: S | B26: 2 | C26: S | D26: 0 | E26: 1 | F26: 1 | G26: 0 | H26: 0 | I26: 0 | J26: =IF(OR($C26="S",$C26=0),0,MATCH(0,OFFSET($D26,1,$C26,ROW($C$323)-ROW($C26)),0)) -> 0 | K26: =IF(OR($C26="S",$C26=0),0,MATCH(OFFSET($D26,0,$C26)+1,OFFSET($D26,1,$C26,ROW($C$323)-ROW($C26)),0)) -> 0 | M26: Serviço | N26: Serviço | O26: - | P26: SINAPI | Q26: 98529 | R26: CORTE RASO E RECORTE DE ÁRVORE COM DIÂMETRO DE TRONCO MAIOR OU IGUAL A 0,20 M E MENOR QUE 0,40 M.AF_05/2018 | S26: UN | T26: 1 | W26: 0
A27: 2 | B27: 2 | C27: 2 | D27: 2 | E27: 1 | F27: 2 | G27: 0 | H27: 0 | I27: 0 | J27: 127 | K27: 2 | M27: Nível 2 | N27: Nível 2 | O27: - | P27: AGETOP | R27: TRANSPORTES | S27: - | W27: 0
A28: S | B28: 2 | C28: S | D28: 0 | E28: 1 | F28: 2 | G28: 0 | H28: 0 | I28: 0 | J28: 0 | K28: 0 | M28: Serviço | N28: Serviço | O28: - | P28: SINAPI | Q28: 72900 | R28: TRANSPORTE DE ENTULHO COM CAMINHAO BASCULANTE 6 M3, RODOVIA PAVIMENTADA, DMT 0,5 A 1,0 KM | S28: M3 | T28: 2.8 | W28: 0
A29: 2 | B29: 2 | C29: 2 | D29: 4 | E29: 1 | F29: 3 | G29: 0 | H29: 0 | I29: 0 | J29: 125 | K29: 4 | M29: Nível 2 | N29: Nível 2 | O29: - | P29: AGETOP | R29: SERVIÇO EM TERRA | S29: - | W29: 0
A30: =CHOOSE(1+LOG(1+2*(ORÇAMENTO.Nivel="Nível 1")+4*(ORÇAMENTO.Nivel="Nível 2")+8*(ORÇAMENTO.Nivel="Nível 3")+16*(ORÇAMENTO.Nivel="Nível 4")+32*(ORÇAMENTO.Nivel="Serviço"),2),0,1,2,3,4,"S") -> S | B30: 2 | C30: S | D30: 0 | E30: 1 | F30: 3 | G30: 0 | H30: 0 | I30: =IF(AND($C30<=4,$C30<>0),0,IF(AND($C30="S",$W30>0),OFFSET(I30,-1,0)+1,OFFSET(I30,-1,0))) -> 0 | J30: 0 | K30: 0 | M30: Serviço | N30: Serviço | O30: - | P30: AGETOP | Q30: 50204 | R30: EMBASAMENTO COM PEDRA MARROADA | S30: m3 | T30: 12.56 | W30: 0
A31: S | B31: 2 | C31: S | D31: 0 | E31: 1 | F31: 3 | G31: 0 | H31: 0 | I31: 0 | J31: 0 | K31: 0 | M31: Serviço | N31: Serviço | O31: - | P31: SINAPI | Q31: 93358 | R31: ESCAVAÇÃO MANUAL DE VALA COM PROFUNDIDADE MENOR OU IGUAL A 1,30 M. AF_03/2016 | S31: M3 | T31: 30 | W31: 0 | X31: Referência: AGETOP - 40101
A32: S | B32: 2 | C32: S | D32: 0 | E32: 1 | F32: 3 | G32: 0 | H32: 0 | I32: 0 | J32: 0 | K32: 0 | M32: Serviço | N32: Serviço | O32: - | P32: SINAPI | Q32: 96995 | R32: REATERRO MANUAL APILOADO COM SOQUETE. AF_10/2017 | S32: M3 | T32: 24 | W32: 0 | X32: Referência: AGETOP - 40902
A33: =CHOOSE(1+LOG(1+2*(ORÇAMENTO.Nivel="Nível 1")+4*(ORÇAMENTO.Nivel="Nível 2")+8*(ORÇAMENTO.Nivel="Nível 3")+16*(ORÇAMENTO.Nivel="Nível 4")+32*(ORÇAMENTO.Nivel="Serviço"),2),0,1,2,3,4,"S") -> 2 | B33: =IF(OR(C33="s",C33=0),OFFSET(B33,-1,0),C33) -> 2 | C33: =IF(OFFSET(C33,-1,0)="L",1,IF(OFFSET(C33,-1,0)=1,2,IF(OR(A33="s",A33=0),"S",IF(AND(OFFSET(C33,-1,0)=2,A33=4),3,IF(AND(OR(OFFSET(C33,-1,0)="s",OFFSET(C33,-1,0)=0),A33<>"s",A33>OFFSET(B33,-1,0)),OFFSET(B33,-1,0),A33))))) -> 2 | D33: =IF(OR(C33="S",C33=0),0,IF(ISERROR(K33),J33,SMALL(J33:K33,1))) -> 8 | E33: =IF($C33=1,OFFSET(E33,-1,0)+1,OFFSET(E33,-1,0)) -> 1 | F33: =IF($C33=1,0,IF($C33=2,OFFSET(F33,-1,0)+1,OFFSET(F33,-1,0))) -> 4 | G33: =IF(AND($C33<=2,$C33<>0),0,IF($C33=3,OFFSET(G33,-1,0)+1,OFFSET(G33,-1,0))) -> 0 | H33: =IF(AND($C33<=3,$C33<>0),0,IF($C33=4,OFFSET(H33,-1,0)+1,OFFSET(H33,-1,0))) -> 0 | I33: =IF(AND($C33<=4,$C33<>0),0,IF(AND($C33="S",$W33>0),OFFSET(I33,-1,0)+1,OFFSET(I33,-1,0))) -> 0 | J33: 121 | K33: 8 | M33: Nível 2 | N33: Nível 2 | O33: - | R33: INSTALAÇÕES ELÉTRICAS | S33: - | W33: 0
A34: S | B34: 2 | C34: S | D34: 0 | E34: 1 | F34: 4 | G34: 0 | H34: 0 | I34: 0 | J34: 0 | K34: 0 | M34: Serviço | N34: Serviço | O34: - | P34: SINAPI | Q34: 92980 | R34: CABO DE COBRE FLEXÍVEL ISOLADO, 10 MM², ANTI-CHAMA 0,6/1,0 KV, PARA DISTRIBUIÇÃO - FORNECIMENTO E INSTALAÇÃO. AF_12/2015 | S34: M | T34: 400 | W34: 0
A35: S | B35: 2 | C35: S | D35: 0 | E35: 1 | F35: 4 | G35: 0 | H35: 0 | I35: 0 | J35: 0 | K35: 0 | M35: Serviço | N35: Serviço | O35: - | P35: SINAPI | Q35: 97893 | R35: CAIXA ENTERRADA ELÉTRICA RETANGULAR, EM ALVENARIA COM BLOCOS DE CONCRETO, FUNDO COM BRITA, DIMENSÕES INTERNAS: 0,8X0,8X0,6 M. AF_05/2018 | S35: UN | T35: 2 | W35: 0
A36: S | B36: 2 | C36: S | D36: 0 | E36: 1 | F36: 4 | G36: 0 | H36: 0 | I36: 0 | J36: 0 | K36: 0 | M36: Serviço | N36: Serviço | O36: - | P36: SINAPI | Q36: 93673 | R36: DISJUNTOR TRIPOLAR TIPO DIN, CORRENTE NOMINAL DE 50A - FORNECIMENTO E INSTALAÇÃO. AF_04/2016 | S36: UN | T36: 2 | W36: 0 | X36: Referência: AGETOP - 71174
A37: S | B37: 2 | C37: S | D37: 0 | E37: 1 | F37: 4 | G37: 0 | H37: 0 | I37: 0 | J37: 0 | K37: 0 | M37: Serviço | N37: Serviço | O37: - | P37: SINAPI | Q37: 93008 | R37: ELETRODUTO RÍGIDO ROSCÁVEL, PVC, DN 50 MM (1 1/2") - FORNECIMENTO E INSTALAÇÃO. AF_12/2015 | S37: M | T37: 80 | W37: 0
A38: S | B38: 2 | C38: S | D38: 0 | E38: 1 | F38: 4 | G38: 0 | H38: 0 | I38: 0 | J38: 0 | K38: 0 | M38: Serviço | N38: Serviço | O38: - | P38: AGETOP | Q38: 71321 | R38: FITA DE AUTO FUSAO, ROLO E 10,00 MM | S38: Un | T38: 1 | W38: 0 | X38: Referência: AGETOP - 71321
A39: S | B39: 2 | C39: S | D39: 0 | E39: 1 | F39: 4 | G39: 0 | H39: 0 | I39: 0 | J39: 0 | K39: 0 | M39: Serviço | N39: Serviço | O39: - | P39: AGETOP | Q39: 71331 | R39: FITA ISOLANTE, ROLO DE 20,00 M | S39: Un | T39: 5 | W39: 0 | X39: Referência: AGETOP - 71331
A40: S | B40: 2 | C40: S | D40: 0 | E40: 1 | F40: 4 | G40: 0 | H40: 0 | I40: 0 | J40: 0 | K40: 0 | M40: Serviço | N40: Serviço | O40: - | P40: SINAPI | Q40: 74131/5 | R40: QUADRO DE DISTRIBUICAO DE ENERGIA DE EMBUTIR, EM CHAPA METALICA, PARA 24 DISJUNTORES TERMOMAGNETICOS MONOPOLARES, COM BARRAMENTO TRIFASICO E NEUTRO, FORNECIMENTO E INSTALACAO | S40: UN | T40: 1 | W40: 0
A41: =CHOOSE(1+LOG(1+2*(ORÇAMENTO.Nivel="Nível 1")+4*(ORÇAMENTO.Nivel="Nível 2")+8*(ORÇAMENTO.Nivel="Nível 3")+16*(ORÇAMENTO.Nivel="Nível 4")+32*(ORÇAMENTO.Nivel="Serviço"),2),0,1,2,3,4,"S") -> 2 | B41: =IF(OR(C41="s",C41=0),OFFSET(B41,-1,0),C41) -> 2 | C41: =IF(OFFSET(C41,-1,0)="L",1,IF(OFFSET(C41,-1,0)=1,2,IF(OR(A41="s",A41=0),"S",IF(AND(OFFSET(C41,-1,0)=2,A41=4),3,IF(AND(OR(OFFSET(C41,-1,0)="s",OFFSET(C41,-1,0)=0),A41<>"s",A41>OFFSET(B41,-1,0)),OFFSET(B41,-1,0),A41))))) -> 2 | D41: =IF(OR(C41="S",C41=0),0,IF(ISERROR(K41),J41,SMALL(J41:K41,1))) -> 52 | E41: =IF($C41=1,OFFSET(E41,-1,0)+1,OFFSET(E41,-1,0)) -> 1 | F41: =IF($C41=1,0,IF($C41=2,OFFSET(F41,-1,0)+1,OFFSET(F41,-1,0))) -> 5 | G41: =IF(AND($C41<=2,$C41<>0),0,IF($C41=3,OFFSET(G41,-1,0)+1,OFFSET(G41,-1,0))) -> 0 | H41: =IF(AND($C41<=3,$C41<>0),0,IF($C41=4,OFFSET(H41,-1,0)+1,OFFSET(H41,-1,0))) -> 0 | I41: =IF(AND($C41<=4,$C41<>0),0,IF(AND($C41="S",$W41>0),OFFSET(I41,-1,0)+1,OFFSET(I41,-1,0))) -> 0 | J41: 113 | K41: 52 | M41: Nível 2 | N41: Nível 2 | O41: - | P41: AGETOP | R41: INSTALAÇÕES HIDROSSANITÁRIAS | S41: - | W41: 0
A42: 3 | B42: 3 | C42: 3 | D42: 6 | E42: 1 | F42: 5 | G42: 1 | H42: 0 | I42: 0 | J42: 51 | K42: 6 | M42: Nível 3 | N42: Nível 3 | O42: - | P42: SINAPI | R42: PEÇAS E ACESSÓRIOS | S42: - | W42: 0
A43: S | B43: 3 | C43: S | D43: 0 | E43: 1 | F43: 5 | G43: 1 | H43: 0 | I43: 0 | J43: 0 | K43: 0 | M43: Serviço | N43: Serviço | O43: - | P43: AGETOP | Q43: 81501 | R43: ADESIVO PLASTICO - FRASCO 850 G | S43: Un | T43: 1 | W43: 0
A44: S | B44: 3 | C44: S | D44: 0 | E44: 1 | F44: 5 | G44: 1 | H44: 0 | I44: 0 | J44: 0 | K44: 0 | M44: Serviço | N44: Serviço | O44: - | P44: AGETOP | Q44: 81504 | R44: SOLUCAO LIMPADORA 1000 CM3 | S44: Un | T44: 1 | W44: 0
A45: S | B45: 3 | C45: S | D45: 0 | E45: 1 | F45: 5 | G45: 1 | H45: 0 | I45: 0 | J45: 0 | K45: 0 | M45: Serviço | N45: Serviço | O45: - | P45: AGETOP | Q45: 81828 | R45: CAIXA DE AREIA 60X60CM FUNDO DE BRITA COM GRELHA METÁLICA FERRO CHATO PADRÃO AGETOP | S45: Un | T45: 10 | W45: 0
A46: S | B46: 3 | C46: S | D46: 0 | E46: 1 | F46: 5 | G46: 1 | H46: 0 | I46: 0 | J46: 0 | K46: 0 | M46: Serviço | N46: Serviço | O46: - | P46: AGETOP | Q46: 81869 | R46: FOSSA SEPTICA 8700 LITROS COM IMPERMEABILIZAÇÃO | S46: Un | T46: 1 | W46: 0
A47: S | B47: 3 | C47: S | D47: 0 | E47: 1 | F47: 5 | G47: 1 | H47: 0 | I47: 0 | J47: 0 | K47: 0 | M47: Serviço | N47: Serviço | O47: - | P47: AGETOP | Q47: 81874 | R47: SUMIDOURO COM DIÂMETRO=1,60M E PROFUNDIDADE=4,50 M | S47: Un | T47: 2 | W47: 0
A48: 3 | B48: 3 | C48: 3 | D48: 7 | E48: 1 | F48: 5 | G48: 2 | H48: 0 | I48: 0 | J48: 45 | K48: 7 | M48: Nível 3 | N48: Nível 3 | O48: - | R48: ESGOTO | S48: - | W48: 0
A49: =CHOOSE(1+LOG(1+2*(ORÇAMENTO.Nivel="Nível 1")+4*(ORÇAMENTO.Nivel="Nível 2")+8*(ORÇAMENTO.Nivel="Nível 3")+16*(ORÇAMENTO.Nivel="Nível 4")+32*(ORÇAMENTO.Nivel="Serviço"),2),0,1,2,3,4,"S") -> S | B49: =IF(OR(C49="s",C49=0),OFFSET(B49,-1,0),C49) -> 3 | C49: =IF(OFFSET(C49,-1,0)="L",1,IF(OFFSET(C49,-1,0)=1,2,IF(OR(A49="s",A49=0),"S",IF(AND(OFFSET(C49,-1,0)=2,A49=4),3,IF(AND(OR(OFFSET(C49,-1,0)="s",OFFSET(C49,-1,0)=0),A49<>"s",A49>OFFSET(B49,-1,0)),OFFSET(B49,-1,0),A49))))) -> S | D49: =IF(OR(C49="S",C49=0),0,IF(ISERROR(K49),J49,SMALL(J49:K49,1))) -> 0 | E49: =IF($C49=1,OFFSET(E49,-1,0)+1,OFFSET(E49,-1,0)) -> 1 | F49: =IF($C49=1,0,IF($C49=2,OFFSET(F49,-1,0)+1,OFFSET(F49,-1,0))) -> 5 | G49: =IF(AND($C49<=2,$C49<>0),0,IF($C49=3,OFFSET(G49,-1,0)+1,OFFSET(G49,-1,0))) -> 2 | H49: =IF(AND($C49<=3,$C49<>0),0,IF($C49=4,OFFSET(H49,-1,0)+1,OFFSET(H49,-1,0))) -> 0 | I49: =IF(AND($C49<=4,$C49<>0),0,IF(AND($C49="S",$W49>0),OFFSET(I49,-1,0)+1,OFFSET(I49,-1,0))) -> 0 | J49: 0 | K49: 0 | M49: Serviço | N49: Serviço | O49: - | P49: SINAPI | Q49: 89863 | R49: JUNÇÃO SIMPLES, PVC, SERIE NORMAL, ESGOTO PREDIAL, DN 150 X 150 MM, JUNTA ELÁSTICA, FORNECIDO E INSTALADO EM SUBCOLETOR AÉREO DE ESGOTO SANITÁRIO. AF_12/2014 | S49: UN | T49: 2 | W49: 0
A50: S | B50: 3 | C50: S | D50: 0 | E50: 1 | F50: 5 | G50: 2 | H50: 0 | I50: 0 | J50: 0 | K50: 0 | M50: Serviço | N50: Serviço | O50: - | P50: SINAPI | Q50: 89590 | R50: JOELHO 90 GRAUS, PVC, SERIE R, ÁGUA PLUVIAL, DN 150 MM, JUNTA ELÁSTICA, FORNECIDO E INSTALADO EM CONDUTORES VERTICAIS DE ÁGUAS PLUVIAIS. AF_12/2014 | S50: UN | T50: 4 | W50: 0
A51: S | B51: 3 | C51: S | D51: 0 | E51: 1 | F51: 5 | G51: 2 | H51: 0 | I51: 0 | J51: 0 | K51: 0 | M51: Serviço | N51: Serviço | O51: - | P51: SINAPI | Q51: 89859 | R51: LUVA DE CORRER, PVC, SERIE NORMAL, ESGOTO PREDIAL, DN 150 MM, JUNTA ELÁSTICA, FORNECIDO E INSTALADO EM SUBCOLETOR AÉREO DE ESGOTO SANITÁRIO. AF_12/2014 | S51: UN | T51: 6 | W51: 0
A52: S | B52: 3 | C52: S | D52: 0 | E52: 1 | F52: 5 | G52: 2 | H52: 0 | I52: 0 | J52: =IF(OR($C52="S",$C52=0),0,MATCH(0,OFFSET($D52,1,$C52,ROW($C$323)-ROW($C52)),0)) -> 0 | K52: =IF(OR($C52="S",$C52=0),0,MATCH(OFFSET($D52,0,$C52)+1,OFFSET($D52,1,$C52,ROW($C$323)-ROW($C52)),0)) -> 0 | M52: Serviço | N52: Serviço | O52: - | P52: AGETOP | Q52: 82303 | R52: TUBO SOLDAVEL P/ESGOTO DIAM.75 MM | S52: m | T52: 20 | W52: 0
A53: S | B53: 3 | C53: S | D53: 0 | E53: 1 | F53: 5 | G53: 2 | H53: 0 | I53: 0 | J53: 0 | K53: 0 | M53: Serviço | N53: Serviço | O53: - | P53: AGETOP | Q53: 82304 | R53: TUBO SOLDAVEL P/ESGOTO DIAM. 100 MM | S53: m | T53: 32 | W53: 0
A54: S | B54: 3 | C54: S | D54: 0 | E54: 1 | F54: 5 | G54: 2 | H54: 0 | I54: 0 | J54: 0 | K54: 0 | M54: Serviço | N54: Serviço | O54: - | P54: AGETOP | Q54: 82331 | R54: TUBO LEVE PVC RIGIDO DIAMETRO 150 MM | S54: M | T54: 260 | W54: 0
A55: 3 | B55: 3 | C55: 3 | D55: 38 | E55: 1 | F55: 5 | G55: 3 | H55: 0 | I55: 0 | J55: =IF(OR($C55="S",$C55=0),0,MATCH(0,OFFSET($D55,1,$C55,ROW($C$323)-ROW($C55)),0)) -> 38 | K55: =IF(OR($C55="S",$C55=0),0,MATCH(OFFSET($D55,0,$C55)+1,OFFSET($D55,1,$C55,ROW($C$323)-ROW($C55)),0)) -> 151 | M55: Nível 3 | N55: Nível 3 | O55: - | P55: SINAPI | R55: INSTALAÇÕES DE INCÊNDIO | S55: - | W55: 0
A56: S | B56: 3 | C56: S | D56: 0 | E56: 1 | F56: 5 | G56: 3 | H56: 0 | I56: 0 | J56: 0 | K56: 0 | M56: Serviço | N56: Serviço | O56: - | P56: AGETOP | Q56: 72338 | R56: SIRENE METALICA ALCANCE 500 M | S56: Un | T56: 1 | W56: 0
A57: S | B57: 3 | C57: S | D57: 0 | E57: 1 | F57: 5 | G57: 3 | H57: 0 | I57: 0 | J57: 0 | K57: 0 | M57: Serviço | N57: Serviço | O57: - | P57: AGETOP | Q57: 81883 | R57: RES.METALICO TAÇA AÇO PATINÁVEL-V=20M3-COL.SEC.H=6M+FUNDAÇÃO+LOGOTIPO | S57: un | T57: 1 | W57: 0
A58: S | B58: 3 | C58: S | D58: 0 | E58: 1 | F58: 5 | G58: 3 | H58: 0 | I58: 0 | J58: 0 | K58: 0 | M58: Serviço | N58: Serviço | O58: - | P58: AGETOP | Q58: 80903 | R58: REGISTRO DE GAVETA BRUTO DIAMETRO 1" | S58: Un | T58: 1 | W58: 0
A59: S | B59: 3 | C59: S | D59: 0 | E59: 1 | F59: 5 | G59: 3 | H59: 0 | I59: 0 | J59: 0 | K59: 0 | M59: Serviço | N59: Serviço | O59: - | P59: AGETOP | Q59: 80910 | R59: REGISTRO DE GAVETA BRUTO DIAMETRO 2.1/2" | S59: Un | T59: 1 | W59: 0
A60: S | B60: 3 | C60: S | D60: 0 | E60: 1 | F60: 5 | G60: 3 | H60: 0 | I60: 0 | J60: 0 | K60: 0 | M60: Serviço | N60: Serviço | O60: - | P60: AGETOP | Q60: 82379 | R60: TUBO FERRO GALVANIZADO DIAM.2.1/2" | S60: m | T60: 210 | W60: 0
A61: S | B61: 3 | C61: S | D61: 0 | E61: 1 | F61: 5 | G61: 3 | H61: 0 | I61: 0 | J61: 0 | K61: 0 | M61: Serviço | N61: Serviço | O61: - | P61: AGETOP | Q61: 85003 | R61: EXTINTOR PO QUIMICO SECO (6 KG) - CAPACIDADE EXTINTORA 20 BC | S61: Un | T61: 6 | W61: 0
A62: S | B62: 3 | C62: S | D62: 0 | E62: 1 | F62: 5 | G62: 3 | H62: 0 | I62: 0 | J62: 0 | K62: 0 | M62: Serviço | N62: Serviço | O62: - | P62: AGETOP | Q62: 85005 | R62: EXTINTOR AGUA PRESSURIZADA (10 LITROS) - CAPACIDADE EXTINTORA 2A | S62: Un | T62: 4 | W62: 0
A63: S | B63: 3 | C63: S | D63: 0 | E63: 1 | F63: 5 | G63: 3 | H63: 0 | I63: 0 | J63: 0 | K63: 0 | M63: Serviço | N63: Serviço | O63: - | P63: AGETOP | Q63: 85011 | R63: CAIXA DE INCÊNDIO METÁLICA COM SUPORTE PARA MANGUEIRA, TAMPA E MURETA 17X60X90 CM C/PINTURA | S63: Un | T63: 4 | W63: 0
A64: S | B64: 3 | C64: S | D64: 0 | E64: 1 | F64: 5 | G64: 3 | H64: 0 | I64: 0 | J64: 0 | K64: 0 | M64: Serviço | N64: Serviço | O64: - | P64: AGETOP | Q64: 85017 | R64: MANGUEIRA DE INCÊNDIO D.I. = 38 MM TIPO 2 COMP. = 15 M | S64: CJ | T64: 8 | W64: 0
A65: S | B65: 3 | C65: S | D65: 0 | E65: 1 | F65: 5 | G65: 3 | H65: 0 | I65: 0 | J65: 0 | K65: 0 | M65: Serviço | N65: Serviço | O65: - | P65: AGETOP | Q65: 85025 | R65: ESGUICHO REGULÁVEL 1.1/2" | S65: Un | T65: 4 | W65: 0
A66: S | B66: 3 | C66: S | D66: 0 | E66: 1 | F66: 5 | G66: 3 | H66: 0 | I66: 0 | J66: 0 | K66: 0 | M66: Serviço | N66: Serviço | O66: - | P66: AGETOP | Q66: 85027 | R66: ADAPTADOR P/ENGATE STORZ 2.1/2" X 1.1/2" | S66: Un | T66: 5 | W66: 0
A67: S | B67: 3 | C67: S | D67: 0 | E67: 1 | F67: 5 | G67: 3 | H67: 0 | I67: 0 | J67: 0 | K67: 0 | M67: Serviço | N67: Serviço | O67: - | P67: AGETOP | Q67: 85031 | R67: REGISTRO GLOBO ANGULAR 2.1/2" | S67: Un | T67: 4 | W67: 0
A68: S | B68: 3 | C68: S | D68: 0 | E68: 1 | F68: 5 | G68: 3 | H68: 0 | I68: 0 | J68: 0 | K68: 0 | M68: Serviço | N68: Serviço | O68: - | P68: AGETOP | Q68: 85035 | R68: TAMPÃO CEGO COM CORRENTE 2.1/2" | S68: Un | T68: 5 | W68: 0
A69: S | B69: 3 | C69: S | D69: 0 | E69: 1 | F69: 5 | G69: 3 | H69: 0 | I69: 0 | J69: 0 | K69: 0 | M69: Serviço | N69: Serviço | O69: - | P69: AGETOP | Q69: 85037 | R69: TANQUE DE PRESSÃO DE 10 L | S69: Un | T69: 1 | W69: 0
A70: S | B70: 3 | C70: S | D70: 0 | E70: 1 | F70: 5 | G70: 3 | H70: 0 | I70: 0 | J70: 0 | K70: 0 | M70: Serviço | N70: Serviço | O70: - | P70: AGETOP | Q70: 85039 | R70: PRESSOSTATO 50 A 80 PSI | S70: Un | T70: 1 | W70: 0
A71: S | B71: 3 | C71: S | D71: 0 | E71: 1 | F71: 5 | G71: 3 | H71: 0 | I71: 0 | J71: 0 | K71: 0 | M71: Serviço | N71: Serviço | O71: - | P71: AGETOP | Q71: 85041 | R71: MANOMETRO - 0 A 10 KG/CM2 | S71: Un | T71: 1 | W71: 0
A72: S | B72: 3 | C72: S | D72: 0 | E72: 1 | F72: 5 | G72: 3 | H72: 0 | I72: 0 | J72: 0 | K72: 0 | M72: Serviço | N72: Serviço | O72: - | P72: AGETOP | Q72: 85047 | R72: NIPLE DUPLO FERRO GALVANIZADO 2.1/2" | S72: Un | T72: 10 | W72: 0
A73: S | B73: 3 | C73: S | D73: 0 | E73: 1 | F73: 5 | G73: 3 | H73: 0 | I73: 0 | J73: 0 | K73: 0 | M73: Serviço | N73: Serviço | O73: - | P73: AGETOP | Q73: 85077 | R73: VÁLVULA DE RETENÇÃO HORIZONTAL 2.1/2" | S73: Un | T73: 2 | W73: 0
A74: S | B74: 3 | C74: S | D74: 0 | E74: 1 | F74: 5 | G74: 3 | H74: 0 | I74: 0 | J74: 0 | K74: 0 | M74: Serviço | N74: Serviço | O74: - | P74: COMPOSIÇÃO | Q74: COMP 017_SEE | R74: REDUCAO GIRATÓRIA TIPO STORZ LATAO P/ INST. PREDIAL COMBATE A INCENDIO ENGATE RAPIDO 2.1/2" X 1.1/2" | S74: UN | T74: 4 | W74: 0
A75: S | B75: 3 | C75: S | D75: 0 | E75: 1 | F75: 5 | G75: 3 | H75: 0 | I75: 0 | J75: 0 | K75: 0 | M75: Serviço | N75: Serviço | O75: - | P75: COMPOSIÇÃO | Q75: COMP 018_SEE | R75: CHAVE DUPLA P/ CONEXÕES TIPO STORZ EM LATÃO ENGATE RÁPIDO 1 1/2" X 2 1/2" | S75: UN | T75: 4 | W75: 0
A76: S | B76: 3 | C76: S | D76: 0 | E76: 1 | F76: 5 | G76: 3 | H76: 0 | I76: 0 | J76: 0 | K76: 0 | M76: Serviço | N76: Serviço | O76: - | P76: COMPOSIÇÃO | Q76: COMP 087_SEE | R76: REGISTRO DE GAVETA COM HASTE ASCENDENTE DE BRONZE 2 1/2" | S76: UN | T76: 1 | W76: 0
A77: S | B77: 3 | C77: S | D77: 0 | E77: 1 | F77: 5 | G77: 3 | H77: 0 | I77: 0 | J77: 0 | K77: 0 | M77: Serviço | N77: Serviço | O77: - | P77: COMPOSIÇÃO | Q77: COMP 019_SEE | R77: TAMPÃO LATAO C/ CORRENTE P/ INSTALAÇÃO PREDIAL COMBATE A INCÊNDIO ENGATE RÁPIDO 1 1/2" | S77: UN | T77: 4 | W77: 0
A78: S | B78: 3 | C78: S | D78: 0 | E78: 1 | F78: 5 | G78: 3 | H78: 0 | I78: 0 | J78: 0 | K78: 0 | M78: Serviço | N78: Serviço | O78: - | P78: COMPOSIÇÃO | Q78: COMP 088_SEE | R78: TE DE FERRO GALVANIZADO 90º X 2.1/2" X 1" | S78: UN | T78: 5 | W78: 0
A79: S | B79: 3 | C79: S | D79: 0 | E79: 1 | F79: 5 | G79: 3 | H79: 0 | I79: 0 | J79: 0 | K79: 0 | M79: Serviço | N79: Serviço | O79: - | P79: AGETOP | Q79: 85056 | R79: TÊ DE FERRO GALVANIZADO 90º X 2 1/2" | S79: un | T79: 5 | W79: 0
A80: S | B80: 3 | C80: S | D80: 0 | E80: 1 | F80: 5 | G80: 3 | H80: 0 | I80: 0 | J80: 0 | K80: 0 | M80: Serviço | N80: Serviço | O80: - | P80: COMPOSIÇÃO | Q80: COMP 030_SEE | R80: COTOVELO DE FERRO GALV. 90° X 2 1/2" | S80: UN | T80: 21 | W80: 0
A81: S | B81: 3 | C81: S | D81: 0 | E81: 1 | F81: 5 | G81: 3 | H81: 0 | I81: 0 | J81: 0 | K81: 0 | M81: Serviço | N81: Serviço | O81: - | P81: COMPOSIÇÃO | Q81: COMP 077_SEE | R81: UNIAO FERRO GALV C/ASSENTO CONICO BRONZE 2 1/2" | S81: UN | T81: 6 | W81: 0
A82: S | B82: 3 | C82: S | D82: 0 | E82: 1 | F82: 5 | G82: 3 | H82: 0 | I82: 0 | J82: 0 | K82: 0 | M82: Serviço | N82: Serviço | O82: - | P82: COMPOSIÇÃO | Q82: COMP 076_SEE | R82: CURVA FERRO GALVANIZADO 45G ROSCA MACHO/FEMEA REF. 2 1/2" | S82: UN | T82: 4 | W82: 0
A83: S | B83: 3 | C83: S | D83: 0 | E83: 1 | F83: 5 | G83: 3 | H83: 0 | I83: 0 | J83: 0 | K83: 0 | M83: Serviço | N83: Serviço | O83: - | P83: COMPOSIÇÃO | Q83: COMP 022_SEE | R83: TAMPÃO FOFO 40X50CM C/INSCRIÇÃO | S83: UN | T83: 1 | W83: 0
A84: S | B84: 3 | C84: S | D84: 0 | E84: 1 | F84: 5 | G84: 3 | H84: 0 | I84: 0 | J84: 0 | K84: 0 | M84: Serviço | N84: Serviço | O84: - | P84: COMPOSIÇÃO | Q84: COMP 024_SEE | R84: SINALIZADOR FOTOLUMINESCENTE PARA EXTINTOR | S84: UN | T84: 12 | W84: 0
A85: S | B85: 3 | C85: S | D85: 0 | E85: 1 | F85: 5 | G85: 3 | H85: 0 | I85: 0 | J85: 0 | K85: 0 | M85: Serviço | N85: Serviço | O85: - | P85: COMPOSIÇÃO | Q85: COMP 186_SEE | R85: BOTOEIRA BOMBA DE INCÊNDIO C/ MARTELO CONVENCIONAL/ ANALÓGICA | S85: UN | T85: 4 | W85: 0
A86: S | B86: 3 | C86: S | D86: 0 | E86: 1 | F86: 5 | G86: 3 | H86: 0 | I86: 0 | J86: 0 | K86: 0 | M86: Serviço | N86: Serviço | O86: - | P86: COMPOSIÇÃO | Q86: COMP 188_SEE | R86: ACIONADOR MANUAL DE ALARME | S86: UN | T86: 2 | W86: 0
A87: S | B87: 3 | C87: S | D87: 0 | E87: 1 | F87: 5 | G87: 3 | H87: 0 | I87: 0 | J87: 0 | K87: 0 | M87: Serviço | N87: Serviço | O87: - | P87: COMPOSIÇÃO | Q87: COMP 190_SEE | R87: CENTRAL DE DETECÇÃO E ALARME DE 40 SETORES COM BATERIA | S87: UN | T87: 1 | W87: 0
A88: S | B88: 3 | C88: S | D88: 0 | E88: 1 | F88: 5 | G88: 3 | H88: 0 | I88: 0 | J88: 0 | K88: 0 | M88: Serviço | N88: Serviço | O88: - | P88: COMPOSIÇÃO | Q88: COMP 025_SEE | R88: SINALIZADOR FOTOLUMINESCENTE DE EMERGÊNCIA | S88: UN | T88: 25 | W88: 0
A89: S | B89: 3 | C89: S | D89: 0 | E89: 1 | F89: 5 | G89: 3 | H89: 0 | I89: 0 | J89: 0 | K89: 0 | M89: Serviço | N89: Serviço | O89: - | P89: COMPOSIÇÃO | Q89: COMP 277_SEE | R89: MARCAÇÃO NO PISO - 1X1 M PARA EXTINTOR | S89: M2 | T89: 10 | W89: 0
A90: S | B90: 3 | C90: S | D90: 0 | E90: 1 | F90: 5 | G90: 3 | H90: 0 | I90: 0 | J90: 0 | K90: 0 | M90: Serviço | N90: Serviço | O90: - | P90: COMPOSIÇÃO | Q90: COMP 080_SEE | R90: BUCHA REDUCAO FERRO GALV ROSCA REF. 2 1/2"X1" | S90: UN | T90: 3 | W90: 0
A91: S | B91: 3 | C91: S | D91: 0 | E91: 1 | F91: 5 | G91: 3 | H91: 0 | I91: 0 | J91: 0 | K91: 0 | M91: Serviço | N91: Serviço | O91: - | P91: COMPOSIÇÃO | Q91: COMP 089_SEE | R91: TE DE REDUCAO 90 GRAUS SOLDAVEL 60 X 50 MM | S91: UN | T91: 8 | W91: 0
A92: S | B92: 3 | C92: S | D92: 0 | E92: 1 | F92: 5 | G92: 3 | H92: 0 | I92: 0 | J92: 0 | K92: 0 | M92: Serviço | N92: Serviço | O92: - | P92: COMPOSIÇÃO | Q92: COMP 040_SEE | R92: CONJUNTO MOTOR-BOMBA ELÉTRICA TRIFÁSICO 380/220 V PARA VZ= 24,33 M³/H, HM= 46,24 M POTÊNCIA= 7,5 CV OU SIMILAR. | S92: UN | T92: 1 | W92: 0
A93: 2 | B93: 2 | C93: 2 | D93: 26 | E93: 1 | F93: 6 | G93: 0 | H93: 0 | I93: 0 | J93: 61 | K93: 26 | M93: Nível 2 | N93: Nível 2 | O93: - | R93: INSTALAÇÕES ESPECIAIS | S93: - | W93: 0
A94: S | B94: 2 | C94: S | D94: 0 | E94: 1 | F94: 6 | G94: 0 | H94: 0 | I94: 0 | J94: 0 | K94: 0 | M94: Serviço | N94: Serviço | O94: - | P94: AGETOP | Q94: 91007 | R94: CENTRAL DE GÁS PADRÃO AGETOP SEM INSTALAÇÕES (1+1 CILINDRO 45 KG) | S94: Un | T94: 1 | W94: 0
A95: S | B95: 2 | C95: S | D95: 0 | E95: 1 | F95: 6 | G95: 0 | H95: 0 | I95: 0 | J95: 0 | K95: 0 | M95: Serviço | N95: Serviço | O95: - | P95: AGETOP | Q95: 91023 | R95: UNIÃO S/BRONZE PRETA 3/4" NPT 300 LBS | S95: Un | T95: 3 | W95: 0
A96: S | B96: 2 | C96: S | D96: 0 | E96: 1 | F96: 6 | G96: 0 | H96: 0 | I96: 0 | J96: 0 | K96: 0 | M96: Serviço | N96: Serviço | O96: - | P96: COMPOSIÇÃO | Q96: COMP 382_SEE | R96: TE DE REDUCAO DE FERRO GALVANIZADO, COM ROSCA BSP, DE 3/4" X 1/2" | S96: UN | T96: 1 | W96: 0
A97: S | B97: 2 | C97: S | D97: 0 | E97: 1 | F97: 6 | G97: 0 | H97: 0 | I97: 0 | J97: 0 | K97: 0 | M97: Serviço | N97: Serviço | O97: - | P97: COMPOSIÇÃO | Q97: COMP 383_SEE | R97: BUCHA DE REDUCAO DE FERRO GALVANIZADO, COM ROSCA BSP, DE 1/2" X 1/4" | S97: UN | T97: 3 | W97: 0
A98: S | B98: 2 | C98: S | D98: 0 | E98: 1 | F98: 6 | G98: 0 | H98: 0 | I98: 0 | J98: 0 | K98: 0 | M98: Serviço | N98: Serviço | O98: - | P98: AGETOP | Q98: 91021 | R98: LUVA GALVANIZADO DE REDUÇÃO 3/4" X 1/2" (GÁS) | S98: Un | T98: 2 | W98: 0
A99: S | B99: 2 | C99: S | D99: 0 | E99: 1 | F99: 6 | G99: 0 | H99: 0 | I99: 0 | J99: 0 | K99: 0 | M99: Serviço | N99: Serviço | O99: - | P99: SINAPI | Q99: 92692 | R99: NIPLE, EM FERRO GALVANIZADO, CONEXÃO ROSQUEADA, DN 15 (1/2"), INSTALADO EM RAMAIS E SUB-RAMAIS DE GÁS - FORNECIMENTO E INSTALAÇÃO. AF_12/2015 | S99: UN | T99: 6 | W99: 0
A100: S | B100: 2 | C100: S | D100: 0 | E100: 1 | F100: 6 | G100: 0 | H100: 0 | I100: 0 | J100: 0 | K100: 0 | M100: Serviço | N100: Serviço | O100: - | P100: AGETOP | Q100: 91031 | R100: NIPLE DUPLO 300 PSI 3/4" | S100: Un | T100: 6 | W100: 0
A101: S | B101: 2 | C101: S | D101: 0 | E101: 1 | F101: 6 | G101: 0 | H101: 0 | I101: 0 | J101: 0 | K101: 0 | M101: Serviço | N101: Serviço | O101: - | P101: COMPOSIÇÃO | Q101: COMP 212_SEE | R101: NIPLE DE REDUÇÃO 1/2" X 1/4" BSP | S101: UN | T101: 4 | W101: 0
A102: S | B102: 2 | C102: S | D102: 0 | E102: 1 | F102: 6 | G102: 0 | H102: 0 | I102: 0 | J102: 0 | K102: 0 | M102: Serviço | N102: Serviço | O102: - | P102: COMPOSIÇÃO | Q102: COMP 213_SEE | R102: NIPLE DE REDUÇÃO 3/4" X 1/2" BSP | S102: UN | T102: 4 | W102: 0
A103: S | B103: 2 | C103: S | D103: 0 | E103: 1 | F103: 6 | G103: 0 | H103: 0 | I103: 0 | J103: 0 | K103: 0 | M103: Serviço | N103: Serviço | O103: - | P103: SINAPI | Q103: 92688 | R103: TUBO DE AÇO GALVANIZADO COM COSTURA, CLASSE MÉDIA, CONEXÃO ROSQUEADA, DN 20 (3/4"), INSTALADO EM RAMAIS E SUB-RAMAIS DE GÁS - FORNECIMENTO E INSTALAÇÃO. AF_12/2015 | S103: M | T103: 12 | W103: 0
A104: S | B104: 2 | C104: S | D104: 0 | E104: 1 | F104: 6 | G104: 0 | H104: 0 | I104: 0 | J104: 0 | K104: 0 | M104: Serviço | N104: Serviço | O104: - | P104: SINAPI | Q104: 92701 | R104: JOELHO 90 GRAUS, EM FERRO GALVANIZADO, CONEXÃO ROSQUEADA, DN 20 (3/4"), INSTALADO EM RAMAIS E SUB-RAMAIS DE GÁS - FORNECIMENTO E INSTALAÇÃO. AF_12/2015 | S104: UN | T104: 4 | W104: 0
A105: S | B105: 2 | C105: S | D105: 0 | E105: 1 | F105: 6 | G105: 0 | H105: 0 | I105: 0 | J105: 0 | K105: 0 | M105: Serviço | N105: Serviço | O105: - | P105: COMPOSIÇÃO | Q105: COMP 237_SEE | R105: FITA ANTICORROSIVA | S105: M | T105: 8 | W105: 0
A106: S | B106: 2 | C106: S | D106: 0 | E106: 1 | F106: 6 | G106: 0 | H106: 0 | I106: 0 | J106: 0 | K106: 0 | M106: Serviço | N106: Serviço | O106: - | P106: AGETOP | Q106: 91025 | R106: VÁLVULA ESFERICA LATÃO 3/4" | S106: Un | T106: 3 | W106: 0
A107: S | B107: 2 | C107: S | D107: 0 | E107: 1 | F107: 6 | G107: 0 | H107: 0 | I107: 0 | J107: 0 | K107: 0 | M107: Serviço | N107: Serviço | O107: - | P107: COMPOSIÇÃO | Q107: COMP 542_SEE | R107: VÁLVULA UGV 3/4" (S) LATÃO | S107: UN | T107: 1 | W107: 0
A108: S | B108: 2 | C108: S | D108: 0 | E108: 1 | F108: 6 | G108: 0 | H108: 0 | I108: 0 | J108: 0 | K108: 0 | M108: Serviço | N108: Serviço | O108: - | P108: COMPOSIÇÃO | Q108: COMP 543_SEE | R108: VÁLVULA UGV 1/2" (S) LATÃO | S108: UN | T108: 1 | W108: 0
A109: S | B109: 2 | C109: S | D109: 0 | E109: 1 | F109: 6 | G109: 0 | H109: 0 | I109: 0 | J109: 0 | K109: 0 | M109: Serviço | N109: Serviço | O109: - | P109: AGETOP | Q109: 91029 | R109: VALVULA DE RETENÇÃO LATÃO 1/2" X 7/16" NPT | S109: Un | T109: 1 | W109: 0
A110: S | B110: 2 | C110: S | D110: 0 | E110: 1 | F110: 6 | G110: 0 | H110: 0 | I110: 0 | J110: 0 | K110: 0 | M110: Serviço | N110: Serviço | O110: - | P110: COMPOSIÇÃO | Q110: COMP 211_SEE | R110: REGULADOR DE 2º ESTÁGIO 5KG/H | S110: UN | T110: 1 | W110: 0
A111: S | B111: 2 | C111: S | D111: 0 | E111: 1 | F111: 6 | G111: 0 | H111: 0 | I111: 0 | J111: 0 | K111: 0 | M111: Serviço | N111: Serviço | O111: - | P111: COMPOSIÇÃO | Q111: COMP 210_SEE | R111: REGULADOR DE 1º ESTÁGIO 60KG/H MODELO AP-40 COM MANÔMETRO | S111: UN | T111: 1 | W111: 0
A112: S | B112: 2 | C112: S | D112: 0 | E112: 1 | F112: 6 | G112: 0 | H112: 0 | I112: 0 | J112: 0 | K112: 0 | M112: Serviço | N112: Serviço | O112: - | P112: AGETOP | Q112: 85003 | R112: EXTINTOR PO QUIMICO SECO (6 KG) - CAPACIDADE EXTINTORA 20 BC | S112: Un | T112: 1 | W112: 0
A113: S | B113: 2 | C113: S | D113: 0 | E113: 1 | F113: 6 | G113: 0 | H113: 0 | I113: 0 | J113: 0 | K113: 0 | M113: Serviço | N113: Serviço | O113: - | P113: COMPOSIÇÃO | Q113: COMP 235_SEE | R113: PLACA DE SINALIZAÇÃO EM PVC COD 01 - (300X300) PROIBIDO FUMAR | S113: UN | T113: 2 | W113: 0
A114: S | B114: 2 | C114: S | D114: 0 | E114: 1 | F114: 6 | G114: 0 | H114: 0 | I114: 0 | J114: 0 | K114: 0 | M114: Serviço | N114: Serviço | O114: - | P114: COMPOSIÇÃO | Q114: COMP 236_SEE | R114: PLACA DE SINALIZAÇÃO EM PVC COD 06 - (300X300) PERIGO INFLAMÁVEL | S114: UN | T114: 2 | W114: 0
A115: S | B115: 2 | C115: S | D115: 0 | E115: 1 | F115: 6 | G115: 0 | H115: 0 | I115: 0 | J115: 0 | K115: 0 | M115: Serviço | N115: Serviço | O115: - | P115: AGETOP | Q115: 91043 | R115: BRAÇADEIRA METALICA TIPO "D" DIAM. 3/4" | S115: Un | T115: 4 | W115: 0
A116: S | B116: 2 | C116: S | D116: 0 | E116: 1 | F116: 6 | G116: 0 | H116: 0 | I116: 0 | J116: 0 | K116: 0 | M116: Serviço | N116: Serviço | O116: - | P116: AGETOP | Q116: 71863 | R116: PARAFUSO P/BUCHA S-10 | S116: Un | T116: 8 | W116: 0
A117: S | B117: 2 | C117: S | D117: 0 | E117: 1 | F117: 6 | G117: 0 | H117: 0 | I117: 0 | J117: 0 | K117: 0 | M117: Serviço | N117: Serviço | O117: - | P117: AGETOP | Q117: 70393 | R117: BUCHA DE NYLON S-10 | S117: Un | T117: 8 | W117: 0
A118: S | B118: 2 | C118: S | D118: 0 | E118: 1 | F118: 6 | G118: 0 | H118: 0 | I118: 0 | J118: 0 | K118: 0 | M118: Serviço | N118: Serviço | O118: - | P118: AGETOP | Q118: 91045 | R118: SUPORTE PARA COLETOR | S118: Un | T118: 2 | W118: 0
A119: =CHOOSE(1+LOG(1+2*(ORÇAMENTO.Nivel="Nível 1")+4*(ORÇAMENTO.Nivel="Nível 2")+8*(ORÇAMENTO.Nivel="Nível 3")+16*(ORÇAMENTO.Nivel="Nível 4")+32*(ORÇAMENTO.Nivel="Serviço"),2),0,1,2,3,4,"S") -> 2 | B119: =IF(OR(C119="s",C119=0),OFFSET(B119,-1,0),C119) -> 2 | C119: =IF(OFFSET(C119,-1,0)="L",1,IF(OFFSET(C119,-1,0)=1,2,IF(OR(A119="s",A119=0),"S",IF(AND(OFFSET(C119,-1,0)=2,A119=4),3,IF(AND(OR(OFFSET(C119,-1,0)="s",OFFSET(C119,-1,0)=0),A119<>"s",A119>OFFSET(B119,-1,0)),OFFSET(B119,-1,0),A119))))) -> 2 | D119: =IF(OR(C119="S",C119=0),0,IF(ISERROR(K119),J119,SMALL(J119:K119,1))) -> 3 | E119: =IF($C119=1,OFFSET(E119,-1,0)+1,OFFSET(E119,-1,0)) -> 1 | F119: =IF($C119=1,0,IF($C119=2,OFFSET(F119,-1,0)+1,OFFSET(F119,-1,0))) -> 7 | G119: =IF(AND($C119<=2,$C119<>0),0,IF($C119=3,OFFSET(G119,-1,0)+1,OFFSET(G119,-1,0))) -> 0 | H119: =IF(AND($C119<=3,$C119<>0),0,IF($C119=4,OFFSET(H119,-1,0)+1,OFFSET(H119,-1,0))) -> 0 | I119: =IF(AND($C119<=4,$C119<>0),0,IF(AND($C119="S",$W119>0),OFFSET(I119,-1,0)+1,OFFSET(I119,-1,0))) -> 0 | J119: =IF(OR($C119="S",$C119=0),0,MATCH(0,OFFSET($D119,1,$C119,ROW($C$323)-ROW($C119)),0)) -> 35 | K119: =IF(OR($C119="S",$C119=0),0,MATCH(OFFSET($D119,0,$C119)+1,OFFSET($D119,1,$C119,ROW($C$323)-ROW($C119)),0)) -> 3 | M119: Nível 2 | N119: Nível 2 | O119: - | R119: ESQUADRIAS METÁLICAS | S119: - | W119: 0
A120: S | B120: 2 | C120: S | D120: 0 | E120: 1 | F120: 7 | G120: 0 | H120: 0 | I120: 0 | J120: 0 | K120: 0 | M120: Serviço | N120: Serviço | O120: - | P120: AGETOP | Q120: 180323 | R120: GRELHA PADRÃO AGETOP DE FERRO CHATO COM BERÇO (ESPAÇAMENTO ENTRE FACES = 1,5CM - NBR 9050 ACESSIBILIDADE) | S120: m2 | T120: 7.2 | W120: 0
A121: S | B121: 2 | C121: S | D121: 0 | E121: 1 | F121: 7 | G121: 0 | H121: 0 | I121: 0 | J121: 0 | K121: 0 | M121: Serviço | N121: Serviço | O121: - | P121: AGETOP | Q121: 180304 | R121: PORTAO DE ABRIR CHAPA 14 PT-4 C/FERRAGENS | S121: m2 | T121: 3 | W121: 0
A122: 2 | B122: 2 | C122: 2 | D122: 2 | E122: 1 | F122: 8 | G122: 0 | H122: 0 | I122: 0 | J122: 32 | K122: 2 | M122: Nível 2 | N122: Nível 2 | O122: - | R122: VIDROS | S122: - | W122: 0
A123: S | B123: 2 | C123: S | D123: 0 | E123: 1 | F123: 8 | G123: 0 | H123: 0 | I123: 0 | J123: 0 | K123: 0 | M123: Serviço | N123: Serviço | O123: - | P123: SINAPI | Q123: 72116 | R123: VIDRO LISO COMUM TRANSPARENTE, ESPESSURA 3MM | S123: M2 | T123: 10 | W123: 0 | X123: Referência: AGETOP - 190101
A124: 2 | B124: 2 | C124: 2 | D124: 3 | E124: 1 | F124: 9 | G124: 0 | H124: 0 | I124: 0 | J124: 30 | K124: 3 | M124: Nível 2 | N124: Nível 2 | O124: - | R124: REVESTIMENTO DE PAREDE | S124: - | W124: 0
A125: =CHOOSE(1+LOG(1+2*(ORÇAMENTO.Nivel="Nível 1")+4*(ORÇAMENTO.Nivel="Nível 2")+8*(ORÇAMENTO.Nivel="Nível 3")+16*(ORÇAMENTO.Nivel="Nível 4")+32*(ORÇAMENTO.Nivel="Serviço"),2),0,1,2,3,4,"S") -> S | B125: 2 | C125: S | D125: 0 | E125: 1 | F125: 9 | G125: 0 | H125: 0 | I125: =IF(AND($C125<=4,$C125<>0),0,IF(AND($C125="S",$W125>0),OFFSET(I125,-1,0)+1,OFFSET(I125,-1,0))) -> 0 | J125: 0 | K125: 0 | M125: Serviço | N125: Serviço | O125: - | P125: SINAPI | Q125: 87904 | R125: CHAPISCO APLICADO EM ALVENARIA (COM PRESENÇA DE VÃOS) E ESTRUTURAS DE CONCRETO DE FACHADA, COM COLHER DE PEDREIRO. ARGAMASSA TRAÇO 1:3 COM PREPARO MANUAL. AF_06/2014 | S125: M2 | T125: 54.8 | W125: 0 | X125: Referência: AGETOP - 200101
A126: S | B126: 2 | C126: S | D126: 0 | E126: =IF($C126=1,OFFSET(E126,-1,0)+1,OFFSET(E126,-1,0)) -> 1 | F126: =IF($C126=1,0,IF($C126=2,OFFSET(F126,-1,0)+1,OFFSET(F126,-1,0))) -> 9 | G126: =IF(AND($C126<=2,$C126<>0),0,IF($C126=3,OFFSET(G126,-1,0)+1,OFFSET(G126,-1,0))) -> 0 | H126: =IF(AND($C126<=3,$C126<>0),0,IF($C126=4,OFFSET(H126,-1,0)+1,OFFSET(H126,-1,0))) -> 0 | I126: 0 | J126: 0 | K126: 0 | M126: Serviço | N126: Serviço | O126: - | P126: SINAPI | Q126: 87547 | R126: MASSA ÚNICA, PARA RECEBIMENTO DE PINTURA, EM ARGAMASSA TRAÇO 1:2:8, PREPARO MECÂNICO COM BETONEIRA 400L, APLICADA MANUALMENTE EM FACES INTERNAS DE PAREDES, ESPESSURA DE 10MM, COM EXECUÇÃO DE TALISCAS. AF_06/2014 | S126: M2 | T126: 54.8 | W126: 0
A127: 2 | B127: 2 | C127: 2 | D127: 3 | E127: 1 | F127: 10 | G127: 0 | H127: 0 | I127: 0 | J127: 27 | K127: 3 | M127: Nível 2 | N127: Nível 2 | O127: - | R127: FORROS | S127: - | W127: 0
A128: 3 | B128: =IF(OR(C128="s",C128=0),OFFSET(B128,-1,0),C128) -> 3 | C128: =IF(OFFSET(C128,-1,0)="L",1,IF(OFFSET(C128,-1,0)=1,2,IF(OR(A128="s",A128=0),"S",IF(AND(OFFSET(C128,-1,0)=2,A128=4),3,IF(AND(OR(OFFSET(C128,-1,0)="s",OFFSET(C128,-1,0)=0),A128<>"s",A128>OFFSET(B128,-1,0)),OFFSET(B128,-1,0),A128))))) -> 3 | D128: =IF(OR(C128="S",C128=0),0,IF(ISERROR(K128),J128,SMALL(J128:K128,1))) -> 2 | E128: 1 | F128: 10 | G128: 1 | H128: 0 | I128: 0 | J128: 2 | K128: 5 | M128: Nível 3 | N128: Nível 3 | O128: - | P128: SINAPI | R128: PVC COM ESTRUTURA | S128: - | W128: 0
A129: S | B129: 3 | C129: S | D129: 0 | E129: 1 | F129: 10 | G129: 1 | H129: 0 | I129: 0 | J129: 0 | K129: 0 | M129: Serviço | N129: Serviço | O129: - | P129: SINAPI | Q129: 96116 | R129: FORRO EM RÉGUAS DE PVC, FRISADO, PARA AMBIENTES COMERCIAIS, INCLUSIVE ESTRUTURA DE FIXAÇÃO. AF_05/2017_P | S129: M2 | T129: 30 | W129: 0 | X129: Referência: AGETOP - 210460
A130: 2 | B130: 2 | C130: 2 | D130: 6 | E130: 1 | F130: 11 | G130: 0 | H130: 0 | I130: 0 | J130: 24 | K130: 6 | M130: Nível 2 | N130: Nível 2 | O130: - | R130: REVESTIMENTO DE PISO | S130: - | W130: 0
A131: 3 | B131: 3 | C131: 3 | D131: 2 | E131: 1 | F131: 11 | G131: 1 | H131: 0 | I131: 0 | J131: 5 | K131: 2 | M131: Nível 3 | N131: Nível 3 | O131: - | R131: CONCRETO | S131: - | W131: 0
A132: S | B132: 3 | C132: S | D132: 0 | E132: 1 | F132: 11 | G132: 1 | H132: 0 | I132: 0 | J132: 0 | K132: 0 | M132: Serviço | N132: Serviço | O132: - | P132: SINAPI | Q132: 94992 | R132: EXECUÇÃO DE PASSEIO (CALÇADA) OU PISO DE CONCRETO COM CONCRETO MOLDADO IN LOCO, FEITO EM OBRA, ACABAMENTO CONVENCIONAL, ESPESSURA 6 CM, ARMADO. AF_07/2016 | S132: M2 | T132: 130 | W132: 0 | X132: Referência: AGETOP - 220104
A133: 3 | B133: 3 | C133: 3 | D133: 3 | E133: 1 | F133: 11 | G133: 2 | H133: 0 | I133: 0 | J133: 3 | K133: 14 | M133: Nível 3 | N133: Nível 3 | O133: - | R133: PODOTÁTIL | S133: - | W133: 0
A134: S | B134: 3 | C134: S | D134: 0 | E134: 1 | F134: 11 | G134: 2 | H134: 0 | I134: 0 | J134: 0 | K134: 0 | M134: Serviço | N134: Serviço | O134: - | P134: AGETOP | Q134: 221120 | R134: PISO DE BORRACHA COLORIDO MODELO TÁTIL ( ALERTA OU DIRECIONAL) INCLUSO CONTRAPISO (1CI:3ARML) C/ E=2CM E NATA DE CIMENTO | S134: m2 | T134: 1 | W134: 0
A135: S | B135: 3 | C135: S | D135: 0 | E135: 1 | F135: 11 | G135: 2 | H135: 0 | I135: 0 | J135: 0 | K135: 0 | M135: Serviço | N135: Serviço | O135: - | P135: AGETOP | Q135: 221126 | R135: PISO DE LADRILHO HIDRÁULICO COLORIDO MODELO TÁTIL ( ALERTA OU DIRECIONAL) SEM LASTRO | S135: m2 | T135: 47 | W135: 0
A136: 2 | B136: 2 | C136: 2 | D136: 6 | E136: 1 | F136: 12 | G136: 0 | H136: 0 | I136: 0 | J136: 18 | K136: 6 | M136: Nível 2 | N136: Nível 2 | O136: - | R136: ADMINISTRAÇÃO | S136: - | W136: 0
A137: 3 | B137: 3 | C137: 3 | D137: 3 | E137: 1 | F137: 12 | G137: 1 | H137: 0 | I137: 0 | J137: 5 | K137: 3 | M137: Nível 3 | N137: Nível 3 | O137: - | R137: MENSALISTAS | S137: - | W137: 0
A138: S | B138: 3 | C138: S | D138: 0 | E138: 1 | F138: 12 | G138: 1 | H138: 0 | I138: 0 | J138: 0 | K138: 0 | M138: Serviço | N138: Serviço | O138: - | P138: SINAPI | Q138: 90778 | R138: ENGENHEIRO CIVIL DE OBRA PLENO COM ENCARGOS COMPLEMENTARES | S138: H | T138: 88 | W138: 0 | X138: Referência: AGETOP - 250101
A139: S | B139: 3 | C139: S | D139: 0 | E139: 1 | F139: 12 | G139: 1 | H139: 0 | I139: 0 | J139: 0 | K139: 0 | M139: Serviço | N139: Serviço | O139: - | P139: SINAPI | Q139: 90776 | R139: ENCARREGADO GERAL COM ENCARGOS COMPLEMENTARES | S139: H | T139: 440 | W139: 0 | X139: Referência: AGETOP - 250103
A140: 3 | B140: 3 | C140: 3 | D140: 2 | E140: 1 | F140: 12 | G140: 2 | H140: 0 | I140: 0 | J140: 2 | K140: 7 | M140: Nível 3 | N140: Nível 3 | O140: - | R140: LAUDO DE ESTANQUEIDADE | S140: - | W140: 0
A141: S | B141: 3 | C141: S | D141: 0 | E141: 1 | F141: 12 | G141: 2 | H141: 0 | I141: 0 | J141: 0 | K141: 0 | M141: Serviço | N141: Serviço | O141: - | P141: SINAPI | Q141: 90778 | R141: ENGENHEIRO CIVIL DE OBRA PLENO COM ENCARGOS COMPLEMENTARES | S141: H | T141: 16 | W141: 0 | X141: Referência: AGETOP - 250101
A142: 2 | B142: 2 | C142: 2 | D142: 7 | E142: 1 | F142: 13 | G142: 0 | H142: 0 | I142: 0 | J142: 12 | K142: 7 | M142: Nível 2 | N142: Nível 2 | O142: - | R142: PINTURA | S142: - | W142: 0
A143: =CHOOSE(1+LOG(1+2*(ORÇAMENTO.Nivel="Nível 1")+4*(ORÇAMENTO.Nivel="Nível 2")+8*(ORÇAMENTO.Nivel="Nível 3")+16*(ORÇAMENTO.Nivel="Nível 4")+32*(ORÇAMENTO.Nivel="Serviço"),2),0,1,2,3,4,"S") -> 3 | B143: 3 | C143: 3 | D143: 2 | E143: 1 | F143: 13 | G143: 1 | H143: 0 | I143: =IF(AND($C143<=4,$C143<>0),0,IF(AND($C143="S",$W143>0),OFFSET(I143,-1,0)+1,OFFSET(I143,-1,0))) -> 0 | J143: 6 | K143: 2 | M143: Nível 3 | N143: Nível 3 | O143: - | P143: AGETOP | R143: LÁTEX ACRÍLICA | S143: - | W143: 0
A144: S | B144: 3 | C144: S | D144: 0 | E144: =IF($C144=1,OFFSET(E144,-1,0)+1,OFFSET(E144,-1,0)) -> 1 | F144: =IF($C144=1,0,IF($C144=2,OFFSET(F144,-1,0)+1,OFFSET(F144,-1,0))) -> 13 | G144: =IF(AND($C144<=2,$C144<>0),0,IF($C144=3,OFFSET(G144,-1,0)+1,OFFSET(G144,-1,0))) -> 1 | H144: =IF(AND($C144<=3,$C144<>0),0,IF($C144=4,OFFSET(H144,-1,0)+1,OFFSET(H144,-1,0))) -> 0 | I144: 0 | J144: 0 | K144: 0 | M144: Serviço | N144: Serviço | O144: - | P144: SINAPI | Q144: 88489 | R144: APLICAÇÃO MANUAL DE PINTURA COM TINTA LÁTEX ACRÍLICA EM PAREDES, DUAS DEMÃOS. AF_06/2014 | S144: M2 | T144: 54.8 | W144: 0 | X144: Referência: AGETOP - 261001
A145: 3 | B145: =IF(OR(C145="s",C145=0),OFFSET(B145,-1,0),C145) -> 3 | C145: =IF(OFFSET(C145,-1,0)="L",1,IF(OFFSET(C145,-1,0)=1,2,IF(OR(A145="s",A145=0),"S",IF(AND(OFFSET(C145,-1,0)=2,A145=4),3,IF(AND(OR(OFFSET(C145,-1,0)="s",OFFSET(C145,-1,0)=0),A145<>"s",A145>OFFSET(B145,-1,0)),OFFSET(B145,-1,0),A145))))) -> 3 | D145: =IF(OR(C145="S",C145=0),0,IF(ISERROR(K145),J145,SMALL(J145:K145,1))) -> 2 | E145: 1 | F145: 13 | G145: 2 | H145: 0 | I145: 0 | J145: 4 | K145: 2 | M145: Nível 3 | N145: Nível 3 | O145: - | P145: AGETOP | R145: ESQUADRIAS NOVAS | S145: - | W145: 0
A146: S | B146: 3 | C146: S | D146: 0 | E146: 1 | F146: 13 | G146: 2 | H146: 0 | I146: 0 | J146: 0 | K146: 0 | M146: Serviço | N146: Serviço | O146: - | P146: SINAPI | Q146: 74145/1 | R146: PINTURA ESMALTE FOSCO, DUAS DEMAOS, SOBRE SUPERFICIE METALICA, INCLUSO UMA DEMAO DE FUNDO ANTICORROSIVO. UTILIZACAO DE REVOLVER ( AR-COMPRIMIDO). | S146: M2 | T146: 16.8 | W146: 0 | X146: Referência: AGETOP - 261602
A147: 3 | B147: 3 | C147: 3 | D147: 2 | E147: 1 | F147: 13 | G147: 3 | H147: 0 | I147: 0 | J147: 2 | K147: 59 | M147: Nível 3 | N147: Nível 3 | O147: - | P147: AGETOP | R147: POLIESPORTIVA | S147: - | W147: 0
A148: S | B148: 3 | C148: S | D148: 0 | E148: 1 | F148: 13 | G148: 3 | H148: 0 | I148: 0 | J148: 0 | K148: 0 | M148: Serviço | N148: Serviço | O148: - | P148: SINAPI | Q148: 74245/1 | R148: PINTURA ACRILICA EM PISO CIMENTADO DUAS DEMAOS | S148: M2 | T148: 170 | W148: 0 | X148: Referência: AGETOP - 261703
A149: 2 | B149: 2 | C149: 2 | D149: 5 | E149: 1 | F149: 14 | G149: 0 | H149: 0 | I149: 0 | J149: 5 | K149: 109 | M149: Nível 2 | N149: Nível 2 | O149: - | R149: DIVERSOS | S149: - | W149: 0
A150: S | B150: 2 | C150: S | D150: 0 | E150: 1 | F150: 14 | G150: 0 | H150: 0 | I150: 0 | J150: 0 | K150: 0 | M150: Serviço | N150: Serviço | O150: - | P150: AGETOP | Q150: 270310 | R150: MURO DE ALVENARIA TIJOLO FURADO 1/2 VEZ ( H=2,00M) COM FUNDAÇÃO - SEM REVESTIMENTOS (PADRÃO AGETOP) | S150: m2 | T150: 27.4 | W150: 0
A151: S | B151: 2 | C151: S | D151: 0 | E151: 1 | F151: 14 | G151: 0 | H151: 0 | I151: 0 | J151: 0 | K151: 0 | M151: Serviço | N151: Serviço | O151: - | P151: AGETOP | Q151: 270501 | R151: LIMPEZA FINAL DE OBRA - (OBRAS CIVIS) | S151: m2 | T151: 400 | W151: 0
A152: S | B152: 2 | C152: S | D152: 0 | E152: 1 | F152: 14 | G152: 0 | H152: 0 | I152: 0 | J152: 0 | K152: 0 | M152: Serviço | N152: Serviço | O152: - | P152: AGETOP | Q152: 271417 | R152: CANALETA CONCRETO DESEMPENADO 5 CM PD.AGETOP | S152: m | T152: 24 | W152: 0
A153: S | B153: 2 | C153: S | D153: 0 | E153: 1 | F153: 14 | G153: 0 | H153: 0 | I153: 0 | J153: 0 | K153: 0 | M153: Serviço | N153: Serviço | O153: - | P153: SINAPI | Q153: 83518 | R153: ALVENARIA EMBASAMENTO E=20 CM BLOCO CONCRETO | S153: M3 | T153: 38 | W153: 0
A154: 1 | B154: 1 | C154: 1 | D154: 4 | E154: 2 | F154: 0 | G154: 0 | H154: 0 | I154: 0 | J154: 169 | K154: 4 | L154: F | M154: Nível 1 | N154: Nível 1 | O154: 2. | P154: SINAPI | R154: IMPLANTAÇÃO | S154: - | W154: 0
A155: 2 | B155: 2 | C155: 2 | D155: 3 | E155: 2 | F155: 1 | G155: 0 | H155: 0 | I155: 0 | J155: 3 | K155: 6 | M155: Nível 2 | N155: Nível 2 | O155: - | P155: SINAPI | R155: SERVIÇO EM TERRA | S155: - | W155: 0
A156: S | B156: 2 | C156: S | D156: 0 | E156: 2 | F156: 1 | G156: 0 | H156: 0 | I156: 0 | J156: 0 | K156: 0 | M156: Serviço | N156: Serviço | O156: - | P156: AGETOP | Q156: 41140 | R156: REGULARIZAÇÃO DO TERRENO SEM APILOAMENTO COM TRANSPORTE MANUAL DA TERRA ESCAVADA | S156: m2 | T156: 360 | W156: 0
A157: S | B157: 2 | C157: S | D157: 0 | E157: 2 | F157: 1 | G157: 0 | H157: 0 | I157: 0 | J157: 0 | K157: 0 | M157: Serviço | N157: Serviço | O157: - | P157: AGETOP | Q157: 41002 | R157: APILOAMENTO | S157: m2 | T157: 360 | W157: 0
A158: 1 | B158: 1 | C158: 1 | D158: 120 | E158: 3 | F158: 0 | G158: 0 | H158: 0 | I158: 0 | J158: 165 | K158: 120 | L158: F | M158: Nível 1 | N158: Nível 1 | O158: 3. | P158: SINAPI | R158: BLOCO 3 SALAS PADRÃO SEDUC 2017 - LAJE | S158: - | W158: 0
A159: 2 | B159: 2 | C159: 2 | D159: 2 | E159: 3 | F159: 1 | G159: 0 | H159: 0 | I159: 0 | J159: 119 | K159: 2 | M159: Nível 2 | N159: Nível 2 | O159: - | P159: SINAPI | R159: SERVIÇOS PRELIMINARES | S159: - | W159: 0
A160: S | B160: 2 | C160: S | D160: 0 | E160: 3 | F160: 1 | G160: 0 | H160: 0 | I160: 0 | J160: 0 | K160: 0 | M160: Serviço | N160: Serviço | O160: - | P160: AGETOP | Q160: 20701 | R160: LOCAÇÃO DA OBRA, EXECUÇÃO DE GABARITO SEM REAPROVEITAMENTO, INCLUSO PINTURA (FACE INTERNA DO RIPÃO 15CM) E PIQUETE COM TESTEMUNHA | S160: m2 | T160: 190.26 | W160: 0
A161: 2 | B161: 2 | C161: 2 | D161: 3 | E161: 3 | F161: 2 | G161: 0 | H161: 0 | I161: 0 | J161: 117 | K161: 3 | M161: Nível 2 | N161: Nível 2 | O161: - | P161: SINAPI | R161: TRANSPORTES | S161: - | W161: 0
A162: S | B162: 2 | C162: S | D162: 0 | E162: 3 | F162: 2 | G162: 0 | H162: 0 | I162: 0 | J162: 0 | K162: 0 | M162: Serviço | N162: Serviço | O162: - | P162: SINAPI | Q162: 72897 | R162: CARGA MANUAL DE ENTULHO EM CAMINHAO BASCULANTE 6 M3 | S162: M3 | T162: 12 | W162: 0
A163: S | B163: 2 | C163: S | D163: 0 | E163: 3 | F163: 2 | G163: 0 | H163: 0 | I163: 0 | J163: 0 | K163: 0 | M163: Serviço | N163: Serviço | O163: - | P163: SINAPI | Q163: 72900 | R163: TRANSPORTE DE ENTULHO COM CAMINHAO BASCULANTE 6 M3, RODOVIA PAVIMENTADA, DMT 0,5 A 1,0 KM | S163: M3 | T163: 12 | W163: 0
A164: 2 | B164: 2 | C164: 2 | D164: 8 | E164: 3 | F164: 3 | G164: 0 | H164: 0 | I164: 0 | J164: 114 | K164: 8 | M164: Nível 2 | N164: Nível 2 | O164: - | P164: SINAPI | R164: SERVIÇO EM TERRA | S164: - | W164: 0
A165: S | B165: 2 | C165: S | D165: 0 | E165: 3 | F165: 3 | G165: 0 | H165: 0 | I165: 0 | J165: 0 | K165: 0 | M165: Serviço | N165: Serviço | O165: - | P165: SINAPI | Q165: 93358 | R165: ESCAVAÇÃO MANUAL DE VALA COM PROFUNDIDADE MENOR OU IGUAL A 1,30 M. AF_03/2016 | S165: M3 | T165: 9.35 | W165: 0 | X165: Referência: AGETOP - 40101
A166: S | B166: 2 | C166: S | D166: 0 | E166: 3 | F166: 3 | G166: 0 | H166: 0 | I166: 0 | J166: 0 | K166: 0 | M166: Serviço | N166: Serviço | O166: - | P166: SINAPI | Q166: 96995 | R166: REATERRO MANUAL APILOADO COM SOQUETE. AF_10/2017 | S166: M3 | T166: 5.42 | W166: 0 | X166: Referência: AGETOP - 40902
A167: S | B167: 2 | C167: S | D167: 0 | E167: 3 | F167: 3 | G167: 0 | H167: 0 | I167: 0 | J167: 0 | K167: 0 | M167: Serviço | N167: Serviço | O167: - | P167: SINAPI | Q167: 79480 | R167: ESCAVACAO MECANICA CAMPO ABERTO EM SOLO EXCETO ROCHA ATE 2,00M PROFUNDIDADE | S167: M3 | T167: 40 | W167: 0 | X167: Referência: AGETOP - 41004
A168: S | B168: 2 | C168: S | D168: 0 | E168: 3 | F168: 3 | G168: 0 | H168: 0 | I168: 0 | J168: 0 | K168: 0 | M168: Serviço | N168: Serviço | O168: - | P168: SINAPI | Q168: 72898 | R168: CARGA E DESCARGA MECANIZADAS DE ENTULHO EM CAMINHAO BASCULANTE 6 M3 | S168: M3 | T168: 40 | W168: 0 | X168: Referência: AGETOP - 41005
A169: S | B169: 2 | C169: S | D169: 0 | E169: 3 | F169: 3 | G169: 0 | H169: 0 | I169: 0 | J169: 0 | K169: 0 | M169: Serviço | N169: Serviço | O169: - | P169: AGETOP | Q169: 41012 | R169: INDENIZAÇÃO DE JAZIDA | S169: m3 | T169: 40 | W169: 0
A170: S | B170: 2 | C170: S | D170: 0 | E170: 3 | F170: 3 | G170: 0 | H170: 0 | I170: 0 | J170: 0 | K170: 0 | M170: Serviço | N170: Serviço | O170: - | P170: AGETOP | Q170: 41006 | R170: TRANSPORTE DE MATERIAL ESCAVADO M3.KM | S170: m3km | T170: 400 | W170: 0
A171: S | B171: 2 | C171: S | D171: 0 | E171: 3 | F171: 3 | G171: 0 | H171: 0 | I171: 0 | J171: 0 | K171: 0 | M171: Serviço | N171: Serviço | O171: - | P171: SINAPI | Q171: 74005/2 | R171: COMPACTACAO MECANICA C/ CONTROLE DO GC>=95% DO PN (AREAS) (C/MONIVELADORA 140 HP E ROLO COMPRESSOR VIBRATORIO 80 HP) | S171: M3 | T171: 32 | W171: 0 | X171: Referência: AGETOP - 41008
A172: 2 | B172: 2 | C172: 2 | D172: 11 | E172: 3 | F172: 4 | G172: 0 | H172: 0 | I172: 0 | J172: 106 | K172: 11 | M172: Nível 2 | N172: Nível 2 | O172: - | P172: SINAPI | R172: FUNDAÇÕES E SONDAGENS | S172: - | W172: 0
A173: 3 | B173: 3 | C173: 3 | D173: 10 | E173: 3 | F173: 4 | G173: 1 | H173: 0 | I173: 0 | J173: 10 | K173: 19 | M173: Nível 3 | N173: Nível 3 | O173: - | P173: SINAPI | R173: ESTACAS E BLOCOS | S173: - | W173: 0
A174: S | B174: 3 | C174: S | D174: 0 | E174: 3 | F174: 4 | G174: 1 | H174: 0 | I174: 0 | J174: 0 | K174: 0 | M174: Serviço | N174: Serviço | O174: - | P174: SINAPI | Q174: 98230 | R174: ESTACA BROCA DE CONCRETO, DIÂMETRO DE 30 CM, PROFUNDIDADE DE ATÉ 3 M, ESCAVAÇÃO MANUAL COM TRADO CONCHA, NÃO ARMADA. AF_03/2018 | S174: M | T174: 103.5 | W174: 0 | X174: Referência: AGETOP - 50302
A175: S | B175: 3 | C175: S | D175: 0 | E175: 3 | F175: 4 | G175: 1 | H175: 0 | I175: 0 | J175: 0 | K175: 0 | M175: Serviço | N175: Serviço | O175: - | P175: SINAPI | Q175: 96522 | R175: ESCAVAÇÃO MANUAL PARA BLOCO DE COROAMENTO OU SAPATA, SEM PREVISÃO DE FÔRMA. AF_06/2017 | S175: M3 | T175: 7.189 | W175: 0 | X175: Referência: AGETOP - 50901
A176: S | B176: 3 | C176: S | D176: 0 | E176: 3 | F176: 4 | G176: 1 | H176: 0 | I176: 0 | J176: 0 | K176: 0 | M176: Serviço | N176: Serviço | O176: - | P176: SINAPI | Q176: 96995 | R176: REATERRO MANUAL APILOADO COM SOQUETE. AF_10/2017 | S176: M3 | T176: 3.289 | W176: 0 | X176: Referência: AGETOP - 40902
A177: S | B177: 3 | C177: S | D177: 0 | E177: 3 | F177: 4 | G177: 1 | H177: 0 | I177: 0 | J177: 0 | K177: 0 | M177: Serviço | N177: Serviço | O177: - | P177: SINAPI | Q177: 94963 | R177: CONCRETO FCK = 15MPA, TRAÇO 1:3,4:3,5 (CIMENTO/ AREIA MÉDIA/ BRITA 1) - PREPARO MECÂNICO COM BETONEIRA 400 L. AF_07/2016 | S177: M3 | T177: 3.9 | W177: 0
A178: S | B178: 3 | C178: S | D178: 0 | E178: 3 | F178: 4 | G178: 1 | H178: 0 | I178: 0 | J178: 0 | K178: 0 | M178: Serviço | N178: Serviço | O178: - | P178: SINAPI | Q178: 74157/4 | R178: LANCAMENTO/APLICACAO MANUAL DE CONCRETO EM FUNDACOES | S178: M3 | T178: 3.9 | W178: 0 | X178: Referência: AGETOP - 51026
A179: S | B179: 3 | C179: S | D179: 0 | E179: 3 | F179: 4 | G179: 1 | H179: 0 | I179: 0 | J179: 0 | K179: 0 | M179: Serviço | N179: Serviço | O179: - | P179: SINAPI | Q179: 96544 | R179: ARMAÇÃO DE BLOCO, VIGA BALDRAME OU SAPATA UTILIZANDO AÇO CA-50 DE 6,3 MM - MONTAGEM. AF_06/2017 | S179: KG | T179: 67.27272727 | W179: 0 | X179: Referência: AGETOP - 52003
A180: S | B180: 3 | C180: S | D180: 0 | E180: 3 | F180: 4 | G180: 1 | H180: 0 | I180: 0 | J180: 0 | K180: 0 | M180: Serviço | N180: Serviço | O180: - | P180: SINAPI | Q180: 96545 | R180: ARMAÇÃO DE BLOCO, VIGA BALDRAME OU SAPATA UTILIZANDO AÇO CA-50 DE 8 MM - MONTAGEM. AF_06/2017 | S180: KG | T180: 136.3636364 | W180: 0 | X180: Referência: AGETOP - 60304
A181: S | B181: 3 | C181: S | D181: 0 | E181: 3 | F181: 4 | G181: 1 | H181: 0 | I181: 0 | J181: 0 | K181: 0 | M181: Serviço | N181: Serviço | O181: - | P181: SINAPI | Q181: 96546 | R181: ARMAÇÃO DE BLOCO, VIGA BALDRAME OU SAPATA UTILIZANDO AÇO CA-50 DE 10 MM - MONTAGEM. AF_06/2017 | S181: KG | T181: 55.45454545 | W181: 0 | X181: Referência: AGETOP - 52005
A182: S | B182: 3 | C182: S | D182: 0 | E182: 3 | F182: 4 | G182: 1 | H182: 0 | I182: 0 | J182: 0 | K182: 0 | M182: Serviço | N182: Serviço | O182: - | P182: SINAPI | Q182: 96543 | R182: ARMAÇÃO DE BLOCO, VIGA BALDRAME E SAPATA UTILIZANDO AÇO CA-60 DE 5 MM - MONTAGEM. AF_06/2017 | S182: KG | T182: 38.18181818 | W182: 0 | X182: Referência: AGETOP - 52014
A183: 2 | B183: 2 | C183: 2 | D183: 27 | E183: 3 | F183: 5 | G183: 0 | H183: 0 | I183: 0 | J183: =IF(OR($C183="S",$C183=0),0,MATCH(0,OFFSET($D183,1,$C183,ROW($C$323)-ROW($C183)),0)) -> 95 | K183: =IF(OR($C183="S",$C183=0),0,MATCH(OFFSET($D183,0,$C183)+1,OFFSET($D183,1,$C183,ROW($C$323)-ROW($C183)),0)) -> 27 | M183: Nível 2 | N183: Nível 2 | O183: - | P183: SINAPI | R183: ESTRUTURA | S183: - | W183: 0
A184: 3 | B184: 3 | C184: 3 | D184: 8 | E184: 3 | F184: 5 | G184: 1 | H184: 0 | I184: 0 | J184: 26 | K184: 8 | M184: Nível 3 | N184: Nível 3 | O184: - | P184: SINAPI | R184: VIGAS BALDRAMES | S184: - | W184: 0
A185: S | B185: 3 | C185: S | D185: 0 | E185: 3 | F185: 5 | G185: 1 | H185: 0 | I185: 0 | J185: 0 | K185: 0 | M185: Serviço | N185: Serviço | O185: - | P185: SINAPI | Q185: 96527 | R185: ESCAVAÇÃO MANUAL DE VALA PARA VIGA BALDRAME, COM PREVISÃO DE FÔRMA. AF_06/2017 | S185: M3 | T185: 9.9435 | W185: 0 | X185: Referência: AGETOP - 40101
A186: S | B186: 3 | C186: S | D186: 0 | E186: 3 | F186: 5 | G186: 1 | H186: 0 | I186: 0 | J186: 0 | K186: 0 | M186: Serviço | N186: Serviço | O186: - | P186: SINAPI | Q186: 96995 | R186: REATERRO MANUAL APILOADO COM SOQUETE. AF_10/2017 | S186: M3 | T186: 5.69 | W186: 0 | X186: Referência: AGETOP - 50903
A187: S | B187: 3 | C187: S | D187: 0 | E187: 3 | F187: 5 | G187: 1 | H187: 0 | I187: 0 | J187: 0 | K187: 0 | M187: Serviço | N187: Serviço | O187: - | P187: AGETOP | Q187: 60191 | R187: FORMA DE TABUA CINTA BALDRAME U=8 VEZES | S187: m2 | T187: 75.67 | W187: 0
A188: S | B188: 3 | C188: S | D188: 0 | E188: 3 | F188: 5 | G188: 1 | H188: 0 | I188: 0 | J188: 0 | K188: 0 | M188: Serviço | N188: Serviço | O188: - | P188: SINAPI | Q188: 94963 | R188: CONCRETO FCK = 15MPA, TRAÇO 1:3,4:3,5 (CIMENTO/ AREIA MÉDIA/ BRITA 1) - PREPARO MECÂNICO COM BETONEIRA 400 L. AF_07/2016 | S188: M3 | T188: 4.25 | W188: 0
A189: S | B189: 3 | C189: S | D189: 0 | E189: 3 | F189: 5 | G189: 1 | H189: 0 | I189: 0 | J189: 0 | K189: 0 | M189: Serviço | N189: Serviço | O189: - | P189: SINAPI | Q189: 74157/4 | R189: LANCAMENTO/APLICACAO MANUAL DE CONCRETO EM FUNDACOES | S189: M3 | T189: 4.25 | W189: 0 | X189: Referência: AGETOP - 51055
A190: S | B190: 3 | C190: S | D190: 0 | E190: 3 | F190: 5 | G190: 1 | H190: 0 | I190: 0 | J190: 0 | K190: 0 | M190: Serviço | N190: Serviço | O190: - | P190: SINAPI | Q190: 96545 | R190: ARMAÇÃO DE BLOCO, VIGA BALDRAME OU SAPATA UTILIZANDO AÇO CA-50 DE 8 MM - MONTAGEM. AF_06/2017 | S190: KG | T190: 173.6363636 | W190: 0 | X190: Referência: AGETOP - 52004
A191: S | B191: 3 | C191: S | D191: 0 | E191: 3 | F191: 5 | G191: 1 | H191: 0 | I191: 0 | J191: 0 | K191: 0 | M191: Serviço | N191: Serviço | O191: - | P191: SINAPI | Q191: 96543 | R191: ARMAÇÃO DE BLOCO, VIGA BALDRAME E SAPATA UTILIZANDO AÇO CA-60 DE 5 MM - MONTAGEM. AF_06/2017 | S191: KG | T191: 97.27272727 | W191: 0 | X191: Referência: AGETOP - 52014
A192: 3 | B192: 3 | C192: 3 | D192: 6 | E192: 3 | F192: 5 | G192: 2 | H192: 0 | I192: 0 | J192: 18 | K192: 6 | M192: Nível 3 | N192: Nível 3 | O192: - | P192: SINAPI | R192: PILARES | S192: - | W192: 0
A193: S | B193: 3 | C193: S | D193: 0 | E193: 3 | F193: 5 | G193: 2 | H193: 0 | I193: 0 | J193: 0 | K193: 0 | M193: Serviço | N193: Serviço | O193: - | P193: SINAPI | Q193: 92426 | R193: MONTAGEM E DESMONTAGEM DE FÔRMA DE PILARES RETANGULARES E ESTRUTURAS SIMILARES COM ÁREA MÉDIA DAS SEÇÕES MENOR OU IGUAL A 0,25 M², PÉ-DIREITO SIMPLES, EM CHAPA DE MADEIRA COMPENSADA RESINADA, 8 UTILIZAÇÕES. AF_12/2015 | S193: M2 | T193: 38.19 | W193: 0
A194: S | B194: 3 | C194: S | D194: 0 | E194: 3 | F194: 5 | G194: 2 | H194: 0 | I194: 0 | J194: 0 | K194: 0 | M194: Serviço | N194: Serviço | O194: - | P194: SINAPI | Q194: 94964 | R194: CONCRETO FCK = 20MPA, TRAÇO 1:2,7:3 (CIMENTO/ AREIA MÉDIA/ BRITA 1) - PREPARO MECÂNICO COM BETONEIRA 400 L. AF_07/2016 | S194: M3 | T194: 1.823 | W194: 0
A195: S | B195: 3 | C195: S | D195: 0 | E195: 3 | F195: 5 | G195: 2 | H195: 0 | I195: 0 | J195: 0 | K195: 0 | M195: Serviço | N195: Serviço | O195: - | P195: SINAPI | Q195: 92873 | R195: LANÇAMENTO COM USO DE BALDES, ADENSAMENTO E ACABAMENTO DE CONCRETO EM ESTRUTURAS. AF_12/2015 | S195: M3 | T195: 1.823 | W195: 0 | X195: Referência: AGETOP - 51055
A196: S | B196: 3 | C196: S | D196: 0 | E196: 3 | F196: 5 | G196: 2 | H196: 0 | I196: 0 | J196: 0 | K196: 0 | M196: Serviço | N196: Serviço | O196: - | P196: SINAPI | Q196: 92778 | R196: ARMAÇÃO DE PILAR OU VIGA DE UMA ESTRUTURA CONVENCIONAL DE CONCRETO ARMADO EM UMA EDIFICAÇÃO TÉRREA OU SOBRADO UTILIZANDO AÇO CA-50 DE 10,0 MM - MONTAGEM. AF_12/2015 | S196: KG | T196: 161.8181818 | W196: 0 | X196: Referência: AGETOP - 60305
A197: S | B197: 3 | C197: S | D197: 0 | E197: 3 | F197: 5 | G197: 2 | H197: 0 | I197: 0 | J197: 0 | K197: 0 | M197: Serviço | N197: Serviço | O197: - | P197: SINAPI | Q197: 92775 | R197: ARMAÇÃO DE PILAR OU VIGA DE UMA ESTRUTURA CONVENCIONAL DE CONCRETO ARMADO EM UMA EDIFICAÇÃO TÉRREA OU SOBRADO UTILIZANDO AÇO CA-60 DE 5,0 MM - MONTAGEM. AF_12/2015 | S197: KG | T197: 55.45454545 | W197: 0 | X197: Referência: AGETOP - 60314
A198: 3 | B198: 3 | C198: 3 | D198: 8 | E198: 3 | F198: 5 | G198: 3 | H198: 0 | I198: 0 | J198: 12 | K198: 8 | M198: Nível 3 | N198: Nível 3 | O198: - | P198: SINAPI | R198: VIGAS DE COBERTURA | S198: - | W198: 0
A199: S | B199: 3 | C199: S | D199: 0 | E199: 3 | F199: 5 | G199: 3 | H199: 0 | I199: 0 | J199: 0 | K199: 0 | M199: Serviço | N199: Serviço | O199: - | P199: SINAPI | Q199: 92464 | R199: MONTAGEM E DESMONTAGEM DE FÔRMA DE VIGA, ESCORAMENTO METÁLICO, PÉ-DIREITO SIMPLES, EM CHAPA DE MADEIRA RESINADA, 8 UTILIZAÇÕES. AF_12/2015 | S199: M2 | T199: 68.47 | W199: 0 | X199: Referência: AGETOP - 60204
A200: S | B200: 3 | C200: S | D200: 0 | E200: 3 | F200: 5 | G200: 3 | H200: 0 | I200: 0 | J200: 0 | K200: 0 | M200: Serviço | N200: Serviço | O200: - | P200: SINAPI | Q200: 94964 | R200: CONCRETO FCK = 20MPA, TRAÇO 1:2,7:3 (CIMENTO/ AREIA MÉDIA/ BRITA 1) - PREPARO MECÂNICO COM BETONEIRA 400 L. AF_07/2016 | S200: M3 | T200: 4.08 | W200: 0
A201: S | B201: 3 | C201: S | D201: 0 | E201: 3 | F201: 5 | G201: 3 | H201: 0 | I201: 0 | J201: 0 | K201: 0 | M201: Serviço | N201: Serviço | O201: - | P201: SINAPI | Q201: 92873 | R201: LANÇAMENTO COM USO DE BALDES, ADENSAMENTO E ACABAMENTO DE CONCRETO EM ESTRUTURAS. AF_12/2015 | S201: M3 | T201: 4.08 | W201: 0 | X201: Referência: AGETOP - 51055
A202: S | B202: 3 | C202: S | D202: 0 | E202: 3 | F202: 5 | G202: 3 | H202: 0 | I202: 0 | J202: 0 | K202: 0 | M202: Serviço | N202: Serviço | O202: - | P202: SINAPI | Q202: 92777 | R202: ARMAÇÃO DE PILAR OU VIGA DE UMA ESTRUTURA CONVENCIONAL DE CONCRETO ARMADO EM UMA EDIFICAÇÃO TÉRREA OU SOBRADO UTILIZANDO AÇO CA-50 DE 8,0 MM - MONTAGEM. AF_12/2015 | S202: KG | T202: 52.72727273 | W202: 0 | X202: Referência: AGETOP - 60304
A203: S | B203: 3 | C203: S | D203: 0 | E203: 3 | F203: 5 | G203: 3 | H203: 0 | I203: 0 | J203: 0 | K203: 0 | M203: Serviço | N203: Serviço | O203: - | P203: SINAPI | Q203: 92778 | R203: ARMAÇÃO DE PILAR OU VIGA DE UMA ESTRUTURA CONVENCIONAL DE CONCRETO ARMADO EM UMA EDIFICAÇÃO TÉRREA OU SOBRADO UTILIZANDO AÇO CA-50 DE 10,0 MM - MONTAGEM. AF_12/2015 | S203: KG | T203: 159.0909091 | W203: 0 | X203: Referência: AGETOP - 60305
A204: S | B204: 3 | C204: S | D204: 0 | E204: 3 | F204: 5 | G204: 3 | H204: 0 | I204: 0 | J204: 0 | K204: 0 | M204: Serviço | N204: Serviço | O204: - | P204: SINAPI | Q204: 92779 | R204: ARMAÇÃO DE PILAR OU VIGA DE UMA ESTRUTURA CONVENCIONAL DE CONCRETO ARMADO EM UMA EDIFICAÇÃO TÉRREA OU SOBRADO UTILIZANDO AÇO CA-50 DE 12,5 MM - MONTAGEM. AF_12/2015 | S204: KG | T204: 51.81818182 | W204: 0 | X204: Referência: AGETOP - 60306
A205: S | B205: 3 | C205: S | D205: 0 | E205: 3 | F205: 5 | G205: 3 | H205: 0 | I205: 0 | J205: 0 | K205: 0 | M205: Serviço | N205: Serviço | O205: - | P205: SINAPI | Q205: 92775 | R205: ARMAÇÃO DE PILAR OU VIGA DE UMA ESTRUTURA CONVENCIONAL DE CONCRETO ARMADO EM UMA EDIFICAÇÃO TÉRREA OU SOBRADO UTILIZANDO AÇO CA-60 DE 5,0 MM - MONTAGEM. AF_12/2015 | S205: KG | T205: 67.27272727 | W205: 0 | X205: Referência: AGETOP - 60314
A206: 3 | B206: 3 | C206: 3 | D206: 2 | E206: 3 | F206: 5 | G206: 4 | H206: 0 | I206: 0 | J206: 4 | K206: 2 | M206: Nível 3 | N206: Nível 3 | O206: - | P206: SINAPI | R206: LAJE | S206: - | W206: 0
... 190 more rows

Sheet Resumo
B3: UNIDADE ESCOLAR | G3: CÓDIGO INEP
B4: =Orçamento!$O$4 -> COLÉGIO ESTADUAL DA POLÍCIA MILITAR DE GOIÁS SILVIO DE CASTRO RIBEIRO - JARAGUÁ | G4: =Orçamento!V4 -> 52024628
B6: OBRA | G6: CIDADE
B7: =Orçamento!$O$7 -> REFORMA E AMPLIAÇÃO | G7: =Orçamento!$V$7 -> JARAGUÁ
B9: ENDEREÇO | G9: CRE
B10: =Orçamento!$R$10 -> RUA MARIA DA MATA RIOS S/N, CENTRO, CEP:76330-000 | G10: =Orçamento!$O$10 -> GOIANÉSIA
B12: REFERÊNCIA | D12: DATA | G12: ÁREA TOTAL CONSTRUÍDA (M²)
B13: =CONCATENATE("AGETOP E SINAPI - ",Orçamento!$W$10) -> AGETOP E SINAPI - ONERADA | D13: =Orçamento!$S$7 -> 2020-03-31 | G13: =Orçamento!$S$13 -> 2278.17
A14: FILTRO
B15: RESUMO GERAL DO ORÇAMENTO
A16: ↓ | B16: ITEM | C16: DESCRIÇÃO DOS SERVIÇOS | E16: UNID | F16: QUANT | G16: PREÇO SEM BDI | H16: PREÇO COM BDI | I16: PARTICIP. (%)
A17: =IF(E17>0,"F","") -> F | B17: 1. | C17: =Orçamento!$P376 -> REFORMA | E17: UN | F17: 1 | G17: =IFERROR(Orçamento!S376,"-") -> 0 | H17: =IFERROR(Orçamento!V376,"") -> 0 | I17: =Orçamento!X376 -> 
A18: =IF(E18>0,"F","") -> F | B18: 2. | C18: =Orçamento!$P377 -> IMPLANTAÇÃO | E18: UN | F18: 1 | G18: =IFERROR(Orçamento!S377,"-") -> 0 | H18: =IFERROR(Orçamento!V377,"") -> 0 | I18: =Orçamento!X377 -> 
A19: F | B19: 3. | C19: =Orçamento!$P378 -> BLOCO 3 SALAS PADRÃO SEDUC 2017 - LAJE | E19: UN | F19: 1 | G19: =IFERROR(Orçamento!S378,"-") -> 0 | H19: =IFERROR(Orçamento!V378,"") -> 0 | I19: =Orçamento!X378 -> 
A20: F | B20: 4. | C20: =Orçamento!$P379 -> COBERTURA DE QUADRA PEQUENA | E20: UN | F20: 1 | G20: =IFERROR(Orçamento!S379,"-") -> 0 | H20: =IFERROR(Orçamento!V379,"") -> 0 | I20: =Orçamento!X379 -> 
B21: 5. | C21: =Orçamento!$P380 ->  | G21: =IFERROR(Orçamento!S380,"-") -> 0 | H21: =IFERROR(Orçamento!V380,"") -> 0 | I21: =Orçamento!X380 -> 
B22: 6. | C22: =Orçamento!$P381 ->  | G22: =IFERROR(Orçamento!S381,"-") -> 0 | H22: =IFERROR(Orçamento!V381,"") -> 0 | I22: =Orçamento!X381 -> 
B23: 7. | C23: =Orçamento!$P382 ->  | G23: =IFERROR(Orçamento!S382,"-") -> 0 | H23: =IFERROR(Orçamento!V382,"") -> 0 | I23: =Orçamento!X382 -> 
B24: 8. | C24: =Orçamento!$P383 ->  | G24: =IFERROR(Orçamento!S383,"-") -> 0 | H24: =IFERROR(Orçamento!V383,"") -> 0 | I24: =Orçamento!X383 -> 
B25: 9. | C25: =Orçamento!$P384 ->  | G25: =IFERROR(Orçamento!S384,"-") -> 0 | H25: =IFERROR(Orçamento!V384,"") -> 0 | I25: =Orçamento!X384 -> 
B26: 10. | C26: =Orçamento!$P385 ->  | G26: =IFERROR(Orçamento!S385,"-") -> 0 | H26: =IFERROR(Orçamento!V385,"") -> 0 | I26: =Orçamento!X385 -> 
B27: 11. | C27: =Orçamento!$P386 ->  | G27: =IFERROR(Orçamento!S386,"-") -> 0 | H27: =IFERROR(Orçamento!V386,"") -> 0 | I27: =Orçamento!X386 -> 
B28: 12. | C28: =Orçamento!$P387 ->  | G28: =IFERROR(Orçamento!S387,"-") -> 0 | H28: =IFERROR(Orçamento!V387,"") -> 0 | I28: =Orçamento!X387 -> 
B29: 13. | C29: =Orçamento!$P388 ->  | G29: =IFERROR(Orçamento!S388,"-") -> 0 | H29: =IFERROR(Orçamento!V388,"") -> 0 | I29: =Orçamento!X388 -> 
B30: 14. | C30: =Orçamento!$P389 ->  | G30: =IFERROR(Orçamento!S389,"-") -> 0 | H30: =IFERROR(Orçamento!V389,"") -> 0 | I30: =Orçamento!X389 -> 
B31: 15. | C31: =Orçamento!$P390 ->  | G31: =IFERROR(Orçamento!S390,"-") -> 0 | H31: =IFERROR(Orçamento!V390,"") -> 0 | I31: =Orçamento!X390 -> 
B32: 16. | C32: =Orçamento!$P391 ->  | G32: =IFERROR(Orçamento!S391,"-") -> 0 | H32: =IFERROR(Orçamento!V391,"") -> 0 | I32: =Orçamento!X391 -> 
B33: 17. | C33: =Orçamento!$P392 ->  | G33: =IFERROR(Orçamento!S392,"-") -> 0 | H33: =IFERROR(Orçamento!V392,"") -> 0 | I33: =Orçamento!X392 -> 
B34: 18. | C34: =Orçamento!$P393 ->  | G34: =IFERROR(Orçamento!S393,"-") -> 0 | H34: =IFERROR(Orçamento!V393,"") -> 0 | I34: =Orçamento!X393 -> 
B35: 19. | C35: =Orçamento!$P394 ->  | G35: =IFERROR(Orçamento!S394,"-") -> 0 | H35: =IFERROR(Orçamento!V394,"") -> 0 | I35: =Orçamento!X394 -> 
B36: 20. | C36: =Orçamento!$P395 ->  | G36: =IFERROR(Orçamento!S395,"-") -> 0 | H36: =IFERROR(Orçamento!V395,"") -> 0 | I36: =Orçamento!X395 -> 
A37: F | B37: TOTAL GERAL DO ORÇAMENTO (R$) | G37: =SUM(G17:G36) -> 0 | H37: 0 | I37: =SUM(I17:I36) -> 
A38: F
A39: F

Sheet Somatório
B3: UNIDADE ESCOLAR | E3: CÓDIGO INEP
B4: =Orçamento!$O$4 -> COLÉGIO ESTADUAL DA POLÍCIA MILITAR DE GOIÁS SILVIO DE CASTRO RIBEIRO - JARAGUÁ | E4: =Orçamento!V4 -> 52024628
B6: OBRA | E6: CIDADE
B7: =Orçamento!$O$7 -> REFORMA E AMPLIAÇÃO | E7: =Orçamento!$V$7 -> JARAGUÁ
B9: ENDEREÇO | E9: CRE
B10: =Orçamento!$R$10 -> RUA MARIA DA MATA RIOS S/N, CENTRO, CEP:76330-000 | E10: =Orçamento!$O$10 -> GOIANÉSIA
B12: REFERÊNCIA | D12: DATA | E12: ÁREA TOTAL CONSTRUÍDA (M²)
B13: =CONCATENATE("AGETOP E SINAPI - ",Orçamento!$W$10) -> AGETOP E SINAPI - ONERADA | D13: =Orçamento!$S$7 -> 2020-03-31 | E13: =Orçamento!$S$13 -> 2278.17
A14: FILTRO
B15: SOMATÓRIO DE SERVIÇOS
A16: ↓ | B16: ITEM | C16: DESCRIÇÃO DOS SERVIÇOS | D16: PREÇO SEM BDI (R$) | E16: PREÇO COM BDI (R$) | F16: PARTIC. ( % )
A17: =IF(D17>0,"F","") ->  | B17: a. | C17: =Orçamento!P342 -> SERVIÇOS PRELIMINARES | D17: =Orçamento!S342 -> 0 | E17: =Orçamento!V342 -> 0 | F17: =Orçamento!X342 -> 0
A18: =IF(D18>0,"F","") ->  | B18: b. | C18: =Orçamento!P343 -> TRANSPORTES | D18: =Orçamento!S343 -> 0 | E18: =Orçamento!V343 -> 0 | F18: =Orçamento!X343 -> 0
B19: c. | C19: =Orçamento!P344 -> SERVIÇO EM TERRA | D19: =Orçamento!S344 -> 0 | E19: =Orçamento!V344 -> 0 | F19: =Orçamento!X344 -> 0
B20: d. | C20: =Orçamento!P345 -> FUNDAÇÕES E SONDAGENS | D20: =Orçamento!S345 -> 0 | E20: =Orçamento!V345 -> 0 | F20: =Orçamento!X345 -> 0
B21: e. | C21: =Orçamento!P346 -> ESTRUTURA | D21: =Orçamento!S346 -> 0 | E21: =Orçamento!V346 -> 0 | F21: =Orçamento!X346 -> 0
B22: f. | C22: =Orçamento!P347 -> INSTALAÇÕES ELÉTRICAS | D22: =Orçamento!S347 -> 0 | E22: =Orçamento!V347 -> 0 | F22: =Orçamento!X347 -> 0
B23: g. | C23: =Orçamento!P348 -> INSTALAÇÕES HIDROSSANITÁRIAS | D23: =Orçamento!S348 -> 0 | E23: =Orçamento!V348 -> 0 | F23: =Orçamento!X348 -> 0
B24: h | C24: =Orçamento!P349 -> INSTALAÇÕES ESPECIAIS | D24: =Orçamento!S349 -> 0 | E24: =Orçamento!V349 -> 0 | F24: =Orçamento!X349 -> 0
B25: i. | C25: =Orçamento!P350 -> ALVENARIAS E DIVISÓRIAS | D25: =Orçamento!S350 -> 0 | E25: =Orçamento!V350 -> 0 | F25: =Orçamento!X350 -> 0
B26: j. | C26: =Orçamento!P351 -> ALVENARIA AUTO-PORTANTE | D26: =Orçamento!S351 -> 0 | E26: =Orçamento!V351 -> 0 | F26: =Orçamento!X351 -> 0
B27: k. | C27: =Orçamento!P352 -> IMPERMEABILIZAÇÃO | D27: =Orçamento!S352 -> 0 | E27: =Orçamento!V352 -> 0 | F27: =Orçamento!X352 -> 0
B28: l. | C28: =Orçamento!P353 -> ISOLAMENTO TÉRMICO E ACÚSTICO | D28: =Orçamento!S353 -> 0 | E28: =Orçamento!V353 -> 0 | F28: =Orçamento!X353 -> 0
B29: m. | C29: =Orçamento!P354 -> ESTRUTURA DE MADEIRA | D29: =Orçamento!S354 -> 0 | E29: =Orçamento!V354 -> 0 | F29: =Orçamento!X354 -> 0
B30: n. | C30: =Orçamento!P355 -> ESTRUTURAS METÁLICAS | D30: =Orçamento!S355 -> 0 | E30: =Orçamento!V355 -> 0 | F30: =Orçamento!X355 -> 0
B31: o. | C31: =Orçamento!P356 -> COBERTURAS | D31: =Orçamento!S356 -> 0 | E31: =Orçamento!V356 -> 0 | F31: =Orçamento!X356 -> 0
B32: p. | C32: =Orçamento!P357 -> ESQUADRIAS DE MADEIRA | D32: =Orçamento!S357 -> 0 | E32: =Orçamento!V357 -> 0 | F32: =Orçamento!X357 -> 0
B33: q. | C33: =Orçamento!P358 -> ESQUADRIAS METÁLICAS | D33: =Orçamento!S358 -> 0 | E33: =Orçamento!V358 -> 0 | F33: =Orçamento!X358 -> 0
B34: r. | C34: =Orçamento!P359 -> VIDROS | D34: =Orçamento!S359 -> 0 | E34: =Orçamento!V359 -> 0 | F34: =Orçamento!X359 -> 0
B35: s. | C35: =Orçamento!P360 -> REVESTIMENTO DE PAREDE | D35: =Orçamento!S360 -> 0 | E35: =Orçamento!V360 -> 0 | F35: =Orçamento!X360 -> 0
B36: t. | C36: =Orçamento!P361 -> FORROS | D36: =Orçamento!S361 -> 0 | E36: =Orçamento!V361 -> 0 | F36: =Orçamento!X361 -> 0
B37: u. | C37: =Orçamento!P362 -> REVESTIMENTO DE PISO | D37: =Orçamento!S362 -> 0 | E37: =Orçamento!V362 -> 0 | F37: =Orçamento!X362 -> 0
B38: v. | C38: =Orçamento!P363 -> FERRAGENS | D38: =Orçamento!S363 -> 0 | E38: =Orçamento!V363 -> 0 | F38: =Orçamento!X363 -> 0
B39: w. | C39: =Orçamento!P364 -> MARCENARIA | D39: =Orçamento!S364 -> 0 | E39: =Orçamento!V364 -> 0 | F39: =Orçamento!X364 -> 0
B40: x. | C40: =Orçamento!P365 -> ADMINISTRAÇÃO | D40: =Orçamento!S365 -> 0 | E40: =Orçamento!V365 -> 0 | F40: =Orçamento!X365 -> 0
B41: y. | C41: =Orçamento!P366 -> PINTURA | D41: =Orçamento!S366 -> 0 | E41: =Orçamento!V366 -> 0 | F41: =Orçamento!X366 -> 0
B42: z. | C42: =Orçamento!P367 -> DIVERSOS | D42: =Orçamento!S367 -> 0 | E42: =Orçamento!V367 -> 0 | F42: =Orçamento!X367 -> 0
A43: F | B43: TOTAL GERAL DO ORÇAMENTO | D43: =SUM(D17:D42) -> 0 | E43: =SUM(E17:E42) -> 0 | F43: =SUM(F17:F42) -> 0
B45: (*) Para itens da AGETOP, os vidros não estão inclusos nas esquadrias e já foram considerados os custos de contramarco para as esquadrias de alumínio;

Sheet Cronog_60_Dias
B3: UNIDADE ESCOLAR | I3: PRAZO
B4: =Orçamento!$O$4 -> COLÉGIO ESTADUAL DA POLÍCIA MILITAR DE GOIÁS SILVIO DE CASTRO RIBEIRO - JARAGUÁ | I4: 60 DIAS CORRIDOS
B6: OBRA | I6: DATA
B7: =Orçamento!$O$7 -> REFORMA E AMPLIAÇÃO | I7: =Orçamento!$S$7 -> 2020-03-31
B9: LOCAL | I9: ÁREA TOTAL CONSTRUÍDA (M²)
A10: FILTRO | B10: =Orçamento!$V$7 -> JARAGUÁ | I10: =Orçamento!$S$13 -> 2278.17
B12: CRONOGRAMA - FÍSICO FINANCEIRO
A13: ↓ | B13: CUSTO TOTAL: | C13: =D93 -> 0 | D13: VALOR | E13: Dias: | F13: 30 | J13: 60 | N13: TOTAL
B14: DESCRIÇÃO DOS SERVIÇOS | E14: % | F14: 1ª PARCELA | J14: 2ª PARCELA
A15: =IF(D15>0,"F","") ->  | B15: SERVIÇOS PRELIMINARES | D15: =Orçamento!V342 -> 0 | E15: =Orçamento!X342 -> 0 | F15: =ROUND(F17*$D$15,2) -> 0 | J15: =ROUND(J17*$D$15,2) -> 0 | N15: =SUM(F15:M15) -> 0
A16: =IF(A15="F",A15,"") -> 
A17: =IF(A16="F",A16,"") ->  | F17: 1 | J17: =1-F17 -> 0 | N17: =IFERROR(E15/100,"") -> 0
A18: =IF(D18>0,"F","") ->  | B18: TRANSPORTES | D18: =Orçamento!V343 -> 0 | E18: =Orçamento!X343 -> 0 | F18: =ROUND(F20*$D$18,2) -> 0 | J18: =ROUND(J20*$D$18,2) -> 0 | N18: =SUM(F18:M18) -> 0
A19: =IF(A18="F",A18,"") -> 
A20: =IF(A19="F",A19,"") ->  | F20: 0.48 | J20: =1-F20 -> 0.52 | N20: =IFERROR(E18/100,"") -> 0
A21: =IF(D21>0,"F","") ->  | B21: SERVIÇO EM TERRA | D21: =Orçamento!V344 -> 0 | E21: =Orçamento!X344 -> 0 | F21: =ROUND(F23*$D$21,2) -> 0 | J21: =ROUND(J23*$D$21,2) -> 0 | N21: =SUM(F21:M21) -> 0
A22: =IF(A21="F",A21,"") -> 
A23: =IF(A22="F",A22,"") ->  | F23: 1 | J23: =1-F23 -> 0 | N23: =IFERROR(E21/100,"") -> 0
A24: =IF(D24>0,"F","") ->  | B24: FUNDAÇÕES E SONDAGENS | D24: =Orçamento!V345 -> 0 | E24: =Orçamento!X345 -> 0 | F24: =ROUND(F26*$D$24,2) -> 0 | J24: =ROUND(J26*$D$24,2) -> 0 | N24: =SUM(F24:M24) -> 0
A25: =IF(A24="F",A24,"") -> 
A26: =IF(A25="F",A25,"") ->  | F26: 1 | J26: =1-F26 -> 0 | N26: =IFERROR(E24/100,"") -> 0
A27: =IF(D27>0,"F","") ->  | B27: ESTRUTURA | D27: =Orçamento!V346 -> 0 | E27: =Orçamento!X346 -> 0 | F27: =ROUND(F29*$D$27,2) -> 0 | J27: =ROUND(J29*$D$27,2) -> 0 | N27: =SUM(F27:M27) -> 0
A28: =IF(A27="F",A27,"") -> 
A29: =IF(A28="F",A28,"") ->  | F29: 0.49 | J29: =1-F29 -> 0.51 | N29: =IFERROR(E27/100,"") -> 0
A30: =IF(D30>0,"F","") ->  | B30: INST.ELET/TELEFÔNICA/CABEAMENTO ESTRUTURADO | D30: =Orçamento!V347 -> 0 | E30: =Orçamento!X347 -> 0 | F30: =ROUND(F32*$D$30,2) -> 0 | J30: =ROUND(J32*$D$30,2) -> 0 | N30: =SUM(F30:M30) -> 0
A31: =IF(A30="F",A30,"") -> 
A32: =IF(A31="F",A31,"") ->  | F32: 0.4 | J32: =1-F32 -> 0.6 | N32: =IFERROR(E30/100,"") -> 0
A33: =IF(D33>0,"F","") ->  | B33: INSTALAÇÕES HIDROSSANITÁRIAS | D33: =Orçamento!V348 -> 0 | E33: =Orçamento!X348 -> 0 | F33: =ROUND(F35*$D$33,2) -> 0 | J33: =ROUND(J35*$D$33,2) -> 0 | N33: =SUM(F33:M33) -> 0
A34: =IF(A33="F",A33,"") -> 
A35: =IF(A34="F",A34,"") ->  | F35: 0.48 | J35: =1-F35 -> 0.52 | N35: =IFERROR(E33/100,"") -> 0
A36: =IF(D36>0,"F","") ->  | B36: INSTALAÇÕES ESPECIAIS | D36: =Orçamento!V349 -> 0 | E36: =Orçamento!X349 -> 0 | F36: =ROUND(F38*$D$36,2) -> 0 | J36: =ROUND(J38*$D$36,2) -> 0 | N36: =SUM(F36:M36) -> 0
A37: =IF(A36="F",A36,"") -> 
A38: =IF(A37="F",A37,"") ->  | F38: 1 | J38: =1-F38 -> 0 | N38: =IFERROR(E36/100,"") -> 0
A39: =IF(D39>0,"F","") ->  | B39: ALVENARIA E DIVISÓRIAS | D39: =Orçamento!V350 -> 0 | E39: =Orçamento!X350 -> 0 | F39: =ROUND(F41*$D$39,2) -> 0 | J39: =ROUND(J41*$D$39,2) -> 0 | N39: =SUM(F39:M39) -> 0
A40: =IF(A39="F",A39,"") -> 
A41: =IF(A40="F",A40,"") ->  | F41: 1 | J41: =1-F41 -> 0 | N41: =IFERROR(E39/100,"") -> 0
A42: =IF(D42>0,"F","") ->  | B42: ALVENARIA AUTO-PORTANTE | D42: =Orçamento!V351 -> 0 | E42: =Orçamento!X351 -> 0 | F42: =ROUND(F44*$D$42,2) -> 0 | J42: =ROUND(J44*$D$42,2) -> 0 | N42: =SUM(F42:M42) -> 0
A43: =IF(A42="F",A42,"") -> 
A44: =IF(A43="F",A43,"") ->  | F44: 1 | J44: =1-F44 -> 0 | N44: =IFERROR(E42/100,"") -> 0
A45: =IF(D45>0,"F","") ->  | B45: IMPERMEABILIZAÇÃO | D45: =Orçamento!V352 -> 0 | E45: =Orçamento!X352 -> 0 | F45: =ROUND(F47*$D$45,2) -> 0 | J45: =ROUND(J47*$D$45,2) -> 0 | N45: =SUM(F45:M45) -> 0
A46: =IF(A45="F",A45,"") -> 
A47: =IF(A46="F",A46,"") ->  | F47: 1 | J47: =1-F47 -> 0 | N47: =IFERROR(E45/100,"") -> 0
A48: =IF(D48>0,"F","") ->  | B48: ISOLAMENTO TÉRMICO E ACÚSTICO | D48: =Orçamento!V353 -> 0 | E48: =Orçamento!X353 -> 0 | F48: =ROUND(F50*$D$48,2) -> 0 | J48: =ROUND(J50*$D$48,2) -> 0 | N48: =SUM(F48:M48) -> 0
A49: =IF(A48="F",A48,"") -> 
A50: =IF(A49="F",A49,"") ->  | F50: 0.5 | J50: =1-F50 -> 0.5 | N50: =IFERROR(E48/100,"") -> 0
A51: =IF(D51>0,"F","") ->  | B51: ESTRUTURA DE MADEIRA | D51: =Orçamento!V354 -> 0 | E51: =Orçamento!X354 -> 0 | F51: =ROUND(F53*$D$51,2) -> 0 | J51: =ROUND(J53*$D$51,2) -> 0 | N51: =SUM(F51:M51) -> 0
A52: =IF(A51="F",A51,"") -> 
A53: =IF(A52="F",A52,"") ->  | F53: 0.4 | J53: =1-F53 -> 0.6 | N53: =IFERROR(E51/100,"") -> 0
A54: =IF(D54>0,"F","") ->  | B54: ESTRUTURA METÁLICA | D54: =Orçamento!V355 -> 0 | E54: =Orçamento!X355 -> 0 | F54: =ROUND(F56*$D$54,2) -> 0 | J54: =ROUND(J56*$D$54,2) -> 0 | N54: =SUM(F54:M54) -> 0
A55: =IF(A54="F",A54,"") -> 
A56: =IF(A55="F",A55,"") ->  | F56: 0.35 | J56: =1-F56 -> 0.65 | N56: =IFERROR(E54/100,"") -> 0
A57: =IF(D57>0,"F","") ->  | B57: COBERTURAS | D57: =Orçamento!V356 -> 0 | E57: =Orçamento!X356 -> 0 | F57: =ROUND(F59*$D$57,2) -> 0 | J57: =ROUND(J59*$D$57,2) -> 0 | N57: =SUM(F57:M57) -> 0
A58: =IF(A57="F",A57,"") -> 
A59: =IF(A58="F",A58,"") ->  | F59: 0 | J59: =1-F59 -> 1 | N59: =IFERROR(E57/100,"") -> 0
A60: =IF(D60>0,"F","") ->  | B60: ESQUADRIAS DE MADEIRA | D60: =Orçamento!V357 -> 0 | E60: =Orçamento!X357 -> 0 | F60: =ROUND(F62*$D$60,2) -> 0 | J60: =ROUND(J62*$D$60,2) -> 0 | N60: =SUM(F60:M60) -> 0
A61: =IF(A60="F",A60,"") -> 
A62: =IF(A61="F",A61,"") ->  | F62: 0.54 | J62: =1-F62 -> 0.46 | N62: =IFERROR(E60/100,"") -> 0
A63: =IF(D63>0,"F","") ->  | B63: ESQUADRIAS METÁLICAS | D63: =Orçamento!V358 -> 0 | E63: =Orçamento!X358 -> 0 | F63: =ROUND(F65*$D$63,2) -> 0 | J63: =ROUND(J65*$D$63,2) -> 0 | N63: =SUM(F63:M63) -> 0
A64: =IF(A63="F",A63,"") -> 
A65: =IF(A64="F",A64,"") ->  | F65: 0.49 | J65: =1-F65 -> 0.51 | N65: =IFERROR(E63/100,"") -> 0
A66: =IF(D66>0,"F","") ->  | B66: VIDROS | D66: =Orçamento!V359 -> 0 | E66: =Orçamento!X359 -> 0 | F66: =ROUND(F68*$D$66,2) -> 0 | J66: =ROUND(J68*$D$66,2) -> 0 | N66: =SUM(F66:M66) -> 0
A67: =IF(A66="F",A66,"") -> 
A68: =IF(A67="F",A67,"") ->  | F68: 0 | J68: =1-F68 -> 1 | N68: =IFERROR(E66/100,"") -> 0
A69: =IF(D69>0,"F","") ->  | B69: REVESTIMENTO DE PAREDE | D69: =Orçamento!V360 -> 0 | E69: =Orçamento!X360 -> 0 | F69: =ROUND(F71*$D$69,2) -> 0 | J69: =ROUND(J71*$D$69,2) -> 0 | N69: =SUM(F69:M69) -> 0
A70: =IF(A69="F",A69,"") -> 
A71: =IF(A70="F",A70,"") ->  | F71: 0.32 | J71: =1-F71 -> 0.68 | N71: =IFERROR(E69/100,"") -> 0
A72: =IF(D72>0,"F","") ->  | B72: FORROS | D72: =Orçamento!V361 -> 0 | E72: =Orçamento!X361 -> 0 | F72: =ROUND(F74*$D$72,2) -> 0 | J72: =ROUND(J74*$D$72,2) -> 0 | N72: =SUM(F72:M72) -> 0
A73: =IF(A72="F",A72,"") -> 
A74: =IF(A73="F",A73,"") ->  | F74: 0.24 | J74: =1-F74 -> 0.76 | N74: =IFERROR(E72/100,"") -> 0
A75: =IF(D75>0,"F","") ->  | B75: REVESTIMENTO DE PISO | D75: =Orçamento!V362 -> 0 | E75: =Orçamento!X362 -> 0 | F75: =ROUND(F77*$D$75,2) -> 0 | J75: =ROUND(J77*$D$75,2) -> 0 | N75: =SUM(F75:M75) -> 0
A76: =IF(A75="F",A75,"") -> 
A77: =IF(A76="F",A76,"") ->  | F77: 0.49 | J77: =1-F77 -> 0.51 | N77: =IFERROR(E75/100,"") -> 0
A78: =IF(D78>0,"F","") ->  | B78: FERRAGENS | D78: =Orçamento!V363 -> 0 | E78: =Orçamento!X363 -> 0 | F78: =ROUND(F80*$D$78,2) -> 0 | J78: =ROUND(J80*$D$78,2) -> 0 | N78: =SUM(F78:M78) -> 0
A79: =IF(A78="F",A78,"") -> 
A80: =IF(A79="F",A79,"") ->  | F80: 0 | J80: =1-F80 -> 1 | N80: =IFERROR(E78/100,"") -> 0
A81: =IF(D81>0,"F","") ->  | B81: MARCENARIA | D81: =Orçamento!V364 -> 0 | E81: =Orçamento!X364 -> 0 | F81: =ROUND(F83*$D$81,2) -> 0 | J81: =ROUND(J83*$D$81,2) -> 0 | N81: =SUM(F81:M81) -> 0
A82: =IF(A81="F",A81,"") -> 
A83: =IF(A82="F",A82,"") ->  | F83: 0.4 | J83: =1-F83 -> 0.6 | N83: =IFERROR(E81/100,"") -> 0
A84: =IF(D84>0,"F","") ->  | B84: ADMINISTRAÇÃO - MENSALISTAS | D84: =Orçamento!V365 -> 0 | E84: =Orçamento!X365 -> 0 | F84: =ROUND(F86*$D$84,2) -> 0 | J84: =ROUND(J86*$D$84,2) -> 0 | N84: =SUM(F84:M84) -> 0
A85: =IF(A84="F",A84,"") -> 
A86: =IF(A85="F",A85,"") ->  | F86: 0.49 | J86: =1-F86 -> 0.51 | N86: =IFERROR(E84/100,"") -> 0
A87: =IF(D87>0,"F","") ->  | B87: PINTURA | D87: =Orçamento!V366 -> 0 | E87: =Orçamento!X366 -> 0 | F87: =ROUND(F89*$D$87,2) -> 0 | J87: =ROUND(J89*$D$87,2) -> 0 | N87: =SUM(F87:M87) -> 0
A88: =IF(A87="F",A87,"") -> 
A89: =IF(A88="F",A88,"") ->  | F89: 0 | J89: =1-F89 -> 1 | N89: =IFERROR(E87/100,"") -> 0
A90: =IF(D90>0,"F","") ->  | B90: DIVERSOS | D90: =Orçamento!V367 -> 0 | E90: =Orçamento!X367 -> 0 | F90: =ROUND(F92*$D$90,2) -> 0 | J90: =ROUND(J92*$D$90,2) -> 0 | N90: =SUM(F90:M90) -> 0
A91: =IF(A90="F",A90,"") -> 
A92: =IF(A91="F",A91,"") ->  | F92: 0.46 | J92: =1-F92 -> 0.54 | N92: =IFERROR(E90/100,"") -> 0
A93: F | B93: CUSTO DO ORÇAMENTO | D93: =SUM(D15:D92) -> 0 | E93: =SUM(E15:E92) -> 0 | F93: =F15+F18+F21+F24+F27+F30+F33+F36+F39+F42+F45+F48+F51+F54+F57+F60+F63+F66+F69+F72+F75+F78+F81+F84+F87+F90 -> 0 | J93: =J15+J18+J21+J24+J27+J30+J33+J36+J39+J42+J45+J48+J51+J54+J57+J60+J63+J66+J69+J72+J75+J78+J81+J84+J87+J90 -> 0 | N93: =N15+N18+N21+N24+N27+N30+N33+N36+N39+N42+N45+N48+N51+N54+N57+N60+N63+N66+N69+N72+N75+N78+N81+N84+N87+N90 -> 0
A94: F | B94: PERCENTUAIS: | F94: =IFERROR(F93/D93,"") ->  | J94: =IFERROR(J93/D93,"") ->  | N94: =SUM(F94:M94) -> 0
A95: F | B95: TOTAIS ACUMULADOS: | F95: =F93 -> 0 | J95: =F95+J93 -> 0
A96: F | B96: PERCENTUAIS ACUMULADOS: | F96: =F94 ->  | J96: =IFERROR(F96+J94,"") -> 
A97: F
A98: F | B98: OBSERVAÇÕES:
A99: F | B99: Os pagamentos somente poderão ser efetuados mediante medição e atesto pelos técnicos da Secretaria da Educação.

Sheet Composição BDI
A3: UNIDADE ESCOLAR
A4: =Orçamento!$O$4 -> COLÉGIO ESTADUAL DA POLÍCIA MILITAR DE GOIÁS SILVIO DE CASTRO RIBEIRO - JARAGUÁ
A6: OBRA
A7: =Orçamento!$O$7 -> REFORMA E AMPLIAÇÃO
A9: ENDEREÇO
A10: =Orçamento!$R$10 -> RUA MARIA DA MATA RIOS S/N, CENTRO, CEP:76330-000
A12: CIDADE
A13: =Orçamento!$V$7 -> JARAGUÁ
A15: CRE
A16: =Orçamento!$O$10 -> GOIANÉSIA
A18: DETALHAMENTO DA COMPOSIÇÃO DE BDI
A19: COMPOSIÇÃO BDI PARA OBRAS CIVIS | F19: BDI CONSTRUÇÃO E REFORMA
A20: DESCRIÇÃO | B20: COEF. | C20: TAXA % (a.m) | D20: % no preço de venda | F20: Situação | G20: 1º Quartil | H20: Médio | I20: 3º Quartil
A21: 1) COFINS | B21: 1 | C21: 0.03 | D21: =C21 -> 0.03 | F21: =IF(OR(C21<G21,C21>I21),"FORA DO INTERVALO","OK") -> OK | G21: 0.03 | H21: 0.03 | I21: 0.03
A22: 2) PIS | B22: 1 | C22: 0.0065 | D22: =C22 -> 0.0065 | F22: =IF(OR(C22<G22,C22>I22),"FORA DO INTERVALO","OK") -> OK | G22: 0.0065 | H22: 0.0065 | I22: 0.0065
A23: 3) ISSQN | B23: 1 | C23: 0.05 | D23: =C23*B23 -> 0.05 | F23: OK | G23: 0.02 | H23: 0.035 | I23: 0.05
A24: 4) CPRB | B24: 1 | C24: 0 | D24: =C24 -> 0 | F24: FORA DO INTERVALO | G24: 0.045 | H24: 0.045 | I24: 0.045
A25: 5) Administração Central | B25: 1 | C25: 0.04 | D25: 0.04 | F25: OK | G25: 0.03 | H25: 0.04 | I25: 0.055
A26: 6) Despesas Financeiras | B26: 1 | C26: 0.0056 | D26: 0.0056 | F26: FORA DO INTERVALO | G26: 0.0059 | H26: 0.0123 | I26: 0.0139
A27: 7) Seguros + Garantias | B27: 1 | C27: 0.0012 | D27: 0.0012 | F27: FORA DO INTERVALO | G27: 0.008 | H27: 0.008 | I27: 0.01
A28: 8) Risco | B28: 1 | C28: 0.0097 | D28: 0.0097 | F28: OK | G28: 0.0097 | H28: 0.0127 | I28: 0.0127
A29: 9) Lucro | B29: 1 | C29: 0.072 | D29: 0.072 | F29: OK | G29: 0.0616 | H29: 0.074 | I29: 0.0896
A30: BDI - FINAL | D30: =(((1+D25+D27+D28)*(1+D26)*(1+D29))/(1-(D21+D22+D23+D24))-1) -> 0.24014621 | F30: FORA DO INTERVALO | G30: 0.2034 | H30: 0.2212 | I30: 0.25
A32: Notas:
A33: (1) e (2) Alíquota definida por lei.
A34: (3) Alíquota e base de cálculo definidas pela legislação municipal.
A35: (4) Alíquota definida pelas leis 12.546/11, 12844/13 e 13.161/15 (CPRB – contribuição previdenciária sobre a receita bruta).
A36: (5) Valores definidos a partir dos limites no Acórdão nº 2.622/2013 - TCU – Plenário. Valores entre o 1º e 3º quartis.
A37: (6) Valor calculado pela expressão matemática do acórdão 2.369/2011 – TCU – Plenário e disponibilizado pela AGETOP em dezembro de 2018. (Foi utilizado para o cálculo a média da Taxa SELIC no período de 11/2017 a 10/2018)
A39: (7) Valores definidos pela AGETOP a partir dos limites no Acórdão nº 2.622/2013 - TCU – Plenário. Valores médios. Observação da AGETOP: (Seguros contra erros de execução, incêndio e explosão, danos da natureza (vendaval, destelhamento, alagamento, inundação, desmoronamento, geadas etc.), emprego de material defeituoso ou inadequado, roubo e/ou furto qualificado, quebra de equipamentos, desmoronamento de estrutura, nas modalidades de Obras Civis em Construção (OCC); Instalação e Montagem (IM); e Obras Civis em Construção e Instalação e Montagem (OCC/IM). Bem como coberturas adicionais para ampliação dessas coberturas básicas, como: cobertura de responsabilidade civil geral, cobertura de responsabilidade civil cruzada, cobertura de despesas extraordinárias, cobertura de tumultos, cobertura de desentulho do local, cobertura de riscos do fabricante, dentre outras, incluindo o seguro de vida em grupo regido pela convenção coletiva dos trabalhadores na indústria da construção civil). A partir de 24/02/2015 por intermédio da Portaria 449/2015 a Presidência da AGETOP, na pessoa do Senhor Jayme Eduardo Rincon, determinou a exclusão dos valores referentes aos Seguros de Risco de Engenharia e Responsabilidade Civil do Profissional na composição do cálculo do B.D.I..
A40: (8) Valores definidos a partir dos limites no Acórdão nº 2.622/2013 - TCU – Plenário. Valores entre 1º e 3° quartis.
A41: (9) Valores definidos a partir dos limites definidos no Acórdão nº 2.622/2013 - TCU – Plenário. Valores adotados e praticados no mercado ( “ ex ante ” ) ou aqueles entre os 1º e 3º quartis.
A43: (*) A fórmula para estipulação da taxa de BDI estimado adotado é a mesma que foi aplicada para a obtenção das tabelas contidas no Acórdão n. 2.622/2013 – TCUPlenário
A45: Obs.: Para obras com valores superiores a R$ 20.000.000,00 sugere-se recalcular o BDI, dimensionando as taxas de administração central e lucro para patamares inferiores ao estipulado acima.

Sheet Relatório CENTRAL
B3: UNIDADE ESCOLAR | D3: CIDADE
B4: =Orçamento!$O$4 -> COLÉGIO ESTADUAL DA POLÍCIA MILITAR DE GOIÁS SILVIO DE CASTRO RIBEIRO - JARAGUÁ | D4: =Orçamento!$V$7 -> JARAGUÁ
B6: OBRA | D6: CRE
B7: =Orçamento!$O$7 -> REFORMA E AMPLIAÇÃO | D7: =Orçamento!$O$10 -> GOIANÉSIA
B9: ENDEREÇO | D9: DATA
A10: FILTRO | B10: =Orçamento!$R$10 -> RUA MARIA DA MATA RIOS S/N, CENTRO, CEP:76330-000 | D10: =Orçamento!$S$7 -> 2020-03-31
B12: RELATÓRIO CENTRAL
A13: ↓ | B13: CÓDIGO | C13: ETAPA | D13: PREÇO (R$) C/ BDI | E13: PARTIC ( % )
A14: =IF(D14>0,"F","") ->  | B14: =Orçamento!O342 -> a. | C14: =Orçamento!P342 -> SERVIÇOS PRELIMINARES | D14: =Orçamento!V342 -> 0 | E14: =Orçamento!X342 -> 0
A15: =IF(D15>0,"F","") ->  | B15: =Orçamento!O343 -> b. | C15: =Orçamento!P343 -> TRANSPORTES | D15: =Orçamento!V343 -> 0 | E15: =Orçamento!X343 -> 0
B16: =Orçamento!O344 -> c. | C16: =Orçamento!P344 -> SERVIÇO EM TERRA | D16: =Orçamento!V344 -> 0 | E16: =Orçamento!X344 -> 0
B17: =Orçamento!O345 -> d. | C17: =Orçamento!P345 -> FUNDAÇÕES E SONDAGENS | D17: =Orçamento!V345 -> 0 | E17: =Orçamento!X345 -> 0
B18: =Orçamento!O346 -> e. | C18: =Orçamento!P346 -> ESTRUTURA | D18: =Orçamento!V346 -> 0 | E18: =Orçamento!X346 -> 0
B19: =Orçamento!O347 -> f. | C19: =Orçamento!P347 -> INSTALAÇÕES ELÉTRICAS | D19: =Orçamento!V347 -> 0 | E19: =Orçamento!X347 -> 0
B20: =Orçamento!O348 -> g. | C20: =Orçamento!P348 -> INSTALAÇÕES HIDROSSANITÁRIAS | D20: =Orçamento!V348 -> 0 | E20: =Orçamento!X348 -> 0
B21: =Orçamento!O349 -> h | C21: =Orçamento!P349 -> INSTALAÇÕES ESPECIAIS | D21: =Orçamento!V349 -> 0 | E21: =Orçamento!X349 -> 0
B22: =Orçamento!O350 -> i. | C22: =Orçamento!P350 -> ALVENARIAS E DIVISÓRIAS | D22: =Orçamento!V350 -> 0 | E22: =Orçamento!X350 -> 0
B23: =Orçamento!O351 -> j. | C23: =Orçamento!P351 -> ALVENARIA AUTO-PORTANTE | D23: =Orçamento!V351 -> 0 | E23: =Orçamento!X351 -> 0
B24: =Orçamento!O352 -> k. | C24: =Orçamento!P352 -> IMPERMEABILIZAÇÃO | D24: =Orçamento!V352 -> 0 | E24: =Orçamento!X352 -> 0
B25: =Orçamento!O353 -> l. | C25: =Orçamento!P353 -> ISOLAMENTO TÉRMICO E ACÚSTICO | D25: =Orçamento!V353 -> 0 | E25: =Orçamento!X353 -> 0
B26: =Orçamento!O354 -> m. | C26: =Orçamento!P354 -> ESTRUTURA DE MADEIRA | D26: =Orçamento!V354 -> 0 | E26: =Orçamento!X354 -> 0
B27: =Orçamento!O355 -> n. | C27: =Orçamento!P355 -> ESTRUTURAS METÁLICAS | D27: =Orçamento!V355 -> 0 | E27: =Orçamento!X355 -> 0
B28: =Orçamento!O356 -> o. | C28: =Orçamento!P356 -> COBERTURAS | D28: =Orçamento!V356 -> 0 | E28: =Orçamento!X356 -> 0
B29: =Orçamento!O357 -> p. | C29: =Orçamento!P357 -> ESQUADRIAS DE MADEIRA | D29: =Orçamento!V357 -> 0 | E29: =Orçamento!X357 -> 0
B30: =Orçamento!O358 -> q. | C30: =Orçamento!P358 -> ESQUADRIAS METÁLICAS | D30: =Orçamento!V358 -> 0 | E30: =Orçamento!X358 -> 0
B31: =Orçamento!O359 -> r. | C31: =Orçamento!P359 -> VIDROS | D31: =Orçamento!V359 -> 0 | E31: =Orçamento!X359 -> 0
B32: =Orçamento!O360 -> s. | C32: =Orçamento!P360 -> REVESTIMENTO DE PAREDE | D32: =Orçamento!V360 -> 0 | E32: =Orçamento!X360 -> 0
B33: =Orçamento!O361 -> t. | C33: =Orçamento!P361 -> FORROS | D33: =Orçamento!V361 -> 0 | E33: =Orçamento!X361 -> 0
B34: =Orçamento!O362 -> u. | C34: =Orçamento!P362 -> REVESTIMENTO DE PISO | D34: =Orçamento!V362 -> 0 | E34: =Orçamento!X362 -> 0
B35: =Orçamento!O363 -> v. | C35: =Orçamento!P363 -> FERRAGENS | D35: =Orçamento!V363 -> 0 | E35: =Orçamento!X363 -> 0
B36: =Orçamento!O364 -> w. | C36: =Orçamento!P364 -> MARCENARIA | D36: =Orçamento!V364 -> 0 | E36: =Orçamento!X364 -> 0
B37: =Orçamento!O365 -> x. | C37: =Orçamento!P365 -> ADMINISTRAÇÃO | D37: =Orçamento!V365 -> 0 | E37: =Orçamento!X365 -> 0
B38: =Orçamento!O366 -> y. | C38: =Orçamento!P366 -> PINTURA | D38: =Orçamento!V366 -> 0 | E38: =Orçamento!X366 -> 0
B39: =Orçamento!O367 -> z. | C39: =Orçamento!P367 -> DIVERSOS | D39: =Orçamento!V367 -> 0 | E39: =Orçamento!X367 -> 0
A40: F | B40: TOTAL GERAL DO ORÇAMENTO (R$) C/BDI | D40: =SUM(D14:D39) -> 0 | E40: =SUM(E14:E39) -> 0

Sheet Parc Maior Relev
B3: UNIDADE ESCOLAR | E3: CÓDIGO INEP
B4: =Orçamento!$O$4 -> COLÉGIO ESTADUAL DA POLÍCIA MILITAR DE GOIÁS SILVIO DE CASTRO RIBEIRO - JARAGUÁ | E4: =Orçamento!$V$4 -> 52024628
B6: OBRA | E6: CIDADE
B7: =Orçamento!$O$7 -> REFORMA E AMPLIAÇÃO | E7: =Orçamento!$V$7 -> JARAGUÁ
B9: CRE | E9: ÁREA TOTAL CONSTRUÍDA (M²)
B10: =Orçamento!$O$10 -> GOIANÉSIA | E10: =Orçamento!$S$13 -> 2278.17
A11: FILTRO
B12: PARCELA DE MAIOR RELEVÂNCIA
B13: CÓDIGO | C13: SERVIÇO | D13: DESCRIÇÃO | E13: UNID | F13: QUANT | G13: PARC. MAIOR RELEV (50%)
A14: =IF(F14>0,"F","") -> F | B14: U. | C14: =IFERROR(VLOOKUP(B14,Orçamento!$O$342:$P$367,2,FALSE),"(inserir código ao lado)") -> REVESTIMENTO DE PISO | D14: PISO DE CONCRETO DESEMPENADO | E14: M² | F14: 168.7 | G14: =F14*0.5 -> 84.35
A15: =IF(F15>0,"F","") ->  | C15: =IFERROR(VLOOKUP(B15,Orçamento!$O$342:$P$367,2,FALSE),"(inserir código ao lado)") -> (inserir código ao lado) | E15: =IFERROR(VLOOKUP($D15,Orçamento!$R$20:$W$323,2,FALSE),"-") -> - | F15: =SUMIF(Orçamento!$R$20:$R$323,'Parc Maior Relev'!D15,Orçamento!$T$20:$T$323) -> 0 | G15: 0
A16: =IF(F16>0,"F","") ->  | C16: =IFERROR(VLOOKUP(B16,Orçamento!$O$342:$P$367,2,FALSE),"(inserir código ao lado)") -> (inserir código ao lado) | E16: =IFERROR(VLOOKUP($D16,Orçamento!$R$20:$W$323,2,FALSE),"-") -> - | F16: =SUMIF(Orçamento!$R$20:$R$323,'Parc Maior Relev'!D16,Orçamento!$T$20:$T$323) -> 0 | G16: =F16*0.5 -> 0
C17: =IFERROR(VLOOKUP(B17,Orçamento!$O$342:$P$367,2,FALSE),"(inserir código ao lado)") -> (inserir código ao lado) | E17: =IFERROR(VLOOKUP($D17,Orçamento!$R$20:$W$323,2,FALSE),"-") -> - | F17: =SUMIF(Orçamento!$R$20:$R$323,'Parc Maior Relev'!D17,Orçamento!$T$20:$T$323) -> 0 | G17: 0
C18: =IFERROR(VLOOKUP(B18,Orçamento!$O$342:$P$367,2,FALSE),"(inserir código ao lado)") -> (inserir código ao lado) | E18: =IFERROR(VLOOKUP($D18,Orçamento!$R$20:$W$323,2,FALSE),"-") -> - | F18: =SUMIF(Orçamento!$R$20:$R$323,'Parc Maior Relev'!D18,Orçamento!$T$20:$T$323) -> 0 | G18: 0
A19: F
A20: F | B20: (*) Para os fins do inciso I dp § 1º do Art. 30 da Lei Federal 8.666/93, são consideradas parcelas de maior relevância técnica as execuções apresentadas
A21: F

Sheet Composições
A4: UNIDADE ESCOLAR | H4: CÓDIGO INEP
A5: =Orçamento!$O$4 -> COLÉGIO ESTADUAL DA POLÍCIA MILITAR DE GOIÁS SILVIO DE CASTRO RIBEIRO - JARAGUÁ | H5: =Orçamento!$V$4 -> 52024628
A7: OBRA | H7: CIDADE
A8: =Orçamento!$O$7 -> REFORMA E AMPLIAÇÃO | H8: =Orçamento!$V$7 -> JARAGUÁ
A10: CRE | D10: ENDEREÇO | H10: REFERÊNCIA AGETOP
A11: =Orçamento!$O$10 -> GOIANÉSIA | D11: =Orçamento!$R$10 -> RUA MARIA DA MATA RIOS S/N, CENTRO, CEP:76330-000 | H11: =Orçamento!$V$10 -> DEZ/18 | I11: =Orçamento!$W$10 -> ONERADA
A13: DATA | D13: ÁREA TOTAL CONSTRUÍDA (M²) | H13: REFERÊNCIA SINAPI
A14: =Orçamento!$S$7 -> 2020-03-31 | D14: =Orçamento!$S$13 -> 2278.17 | H14: =Orçamento!$V$13 -> MAR/19 | I14: =Orçamento!$W$13 -> ONERADA
A16: COMPOSIÇÕES DE CUSTOS UNITÁRIOS - SEE-GO
A17: 17 | B17: FONTE | C17: CÓDIGO | D17: DESCRIÇÃO | E17: UNIDADE | F17: COEFIC. | G17: CUSTO UNITÁRIO | I17: CUSTO TOTAL (A) + (B) + (C) + (D) + (E)
G18: DESONERADO | H18: NÃO DESONER. | I18: DESONERADO | J18: NÃO DESONER.
B19: COMPOSIÇÃO | C19: COMP 017_SEE | D19: REDUCAO GIRATÓRIA TIPO STORZ LATAO P/ INST. PREDIAL COMBATE A INCENDIO ENGATE RAPIDO 2.1/2" X 1.1/2" | E19: UN | G19: - | H19: - | I19: 115.58 | J19: 116.13
B20: AGETOP_I | C20: 8 | D20: AJUDANTE | E20: h | F20: 0.16 | G20: 8.2 | H20: 9.51 | I20: 1.31 | J20: 1.52
B21: AGETOP_I | C21: 11 | D21: ENCANADOR | E21: h | F21: 0.16 | G21: 13.4 | H21: 15.53 | I21: 2.14 | J21: 2.48
G22: 0 | H22: 0 | I22: 0 | J22: 0
B23: MÃO DE OBRA (B) - TOTAL | I23: 3.45 | J23: 4
B24: SINAPI_I | C24: 20972 | D24: REDUCAO FIXA TIPO STORZ, ENGATE RAPIDO 2.1/2" X 1.1/2", EM LATAO, PARA INSTALACAO PREDIAL COMBATE A INCENDIO PREDIAL | E24: UN | F24: 1 | G24: 112,13 | H24: 112.13 | I24: 112.13 | J24: 112.13
G25: 0 | H25: 0 | I25: 0 | J25: 0
G26: 0 | H26: 0 | I26: 0 | J26: 0
B27: MATERIAL (C) - TOTAL | I27: 112.13 | J27: 112.13
A29: 18 | B29: FONTE | C29: CÓDIGO | D29: DESCRIÇÃO | E29: UNIDADE | F29: COEFIC. | G29: CUSTO UNITÁRIO | I29: CUSTO TOTAL (A) + (B) + (C) + (D) + (E)
G30: DESONERADO | H30: NÃO DESONER. | I30: DESONERADO | J30: NÃO DESONER.
B31: COMPOSIÇÃO | C31: COMP 018_SEE | D31: CHAVE DUPLA P/ CONEXÕES TIPO STORZ EM LATÃO ENGATE RÁPIDO 1 1/2" X 2 1/2" | E31: UN | G31: - | H31: - | I31: 16.96 | J31: 17.28
B32: AGETOP_I | C32: 11 | D32: ENCANADOR | E32: h | F32: 0.15 | G32: 13.4 | H32: 15.53 | I32: 2.01 | J32: 2.33
G33: 0 | H33: 0 | I33: 0 | J33: 0
G34: 0 | H34: 0 | I34: 0 | J34: 0
B35: MÃO DE OBRA (B) - TOTAL | I35: 2.01 | J35: 2.33
B36: SINAPI_I | C36: 20971 | D36: CHAVE DUPLA PARA CONEXOES TIPO STORZ, ENGATE RAPIDO 1 1/2" X 2 1/2", EM LATAO, PARA INSTALACAO PREDIAL COMBATE A INCENDIO | E36: UN | F36: 1 | G36: 14,95 | H36: 14.95 | I36: 14.95 | J36: 14.95
G37: 0 | H37: 0 | I37: 0 | J37: 0
G38: 0 | H38: 0 | I38: 0 | J38: 0
B39: MATERIAL (C) - TOTAL | I39: 14.95 | J39: 14.95
A41: 87 | B41: FONTE | C41: CÓDIGO | D41: DESCRIÇÃO | E41: UNIDADE | F41: COEFIC. | G41: CUSTO UNITÁRIO | I41: CUSTO TOTAL (A) + (B) + (C) + (D) + (E)
G42: DESONERADO | H42: NÃO DESONER. | I42: DESONERADO | J42: NÃO DESONER.
B43: COMPOSIÇÃO | C43: COMP 087_SEE | D43: REGISTRO DE GAVETA COM HASTE ASCENDENTE DE BRONZE 2 1/2" | E43: UN | I43: 257.3 | J43: 261.26
B44: AGETOP_I | C44: 8 | D44: AJUDANTE | E44: h | F44: 1.15 | G44: 8.2 | H44: 9.51 | I44: 9.43 | J44: 10.94
B45: AGETOP_I | C45: 11 | D45: ENCANADOR | E45: h | F45: 1.15 | G45: 13.4 | H45: 15.53 | I45: 15.41 | J45: 17.86
G46: 0 | H46: 0 | I46: 0 | J46: 0
B47: MÃO DE OBRA (B) - TOTAL | I47: 24.84 | J47: 28.8
B48: AGETOP_I | C48: H689 | D48: FITA VEDAROSCA 12 MM | E48: m | F48: 2.82 | G48: 0.28 | H48: 0.28 | I48: 0.79 | J48: 0.79
B49: COTAÇÃO | C49: COT 017_SEE | D49: REGISTRO DE GAVETA COM HASTE ASCENDENTE DE BRONZE 2 1/2" | E49: UN | F49: 1 | G49: 231.6666667 | H49: 231.6666667 | I49: 231.67 | J49: 231.67
G50: 0 | H50: 0 | I50: 0 | J50: 0
B51: MATERIAL (C) - TOTAL | I51: 232.46 | J51: 232.46
A53: 19 | B53: FONTE | C53: CÓDIGO | D53: DESCRIÇÃO | E53: UNIDADE | F53: COEFIC. | G53: CUSTO UNITÁRIO | I53: CUSTO TOTAL (A) + (B) + (C) + (D) + (E)
G54: DESONERADO | H54: NÃO DESONER. | I54: DESONERADO | J54: NÃO DESONER.
B55: COMPOSIÇÃO | C55: COMP 019_SEE | D55: TAMPÃO LATAO C/ CORRENTE P/ INSTALAÇÃO PREDIAL COMBATE A INCÊNDIO ENGATE RÁPIDO 1 1/2" | E55: UN | G55: - | H55: - | I55: 64.54 | J55: 65.06
B56: AGETOP_I | C56: 11 | D56: ENCANADOR | E56: h | F56: 0.15 | G56: 13.4 | H56: 15.53 | I56: 2.01 | J56: 2.33
B57: AGETOP_I | C57: 8 | D57: AJUDANTE | E57: h | F57: 0.15 | G57: 8.2 | H57: 9.51 | I57: 1.23 | J57: 1.43
G58: 0 | H58: 0 | I58: 0 | J58: 0
B59: MÃO DE OBRA (B) - TOTAL | I59: 3.24 | J59: 3.76
B60: SINAPI_I | C60: 20964 | D60: TAMPAO COM CORRENTE, EM LATAO, ENGATE RAPIDO 1 1/2", PARA INSTALACAO PREDIAL DE COMBATE A INCENDIO | E60: UN | F60: 1 | G60: 61,30 | H60: 61.3 | I60: 61.3 | J60: 61.3
G61: 0 | H61: 0 | I61: 0 | J61: 0
G62: 0 | H62: 0 | I62: 0 | J62: 0
B63: MATERIAL (C) - TOTAL | I63: 61.3 | J63: 61.3
A65: 88 | B65: FONTE | C65: CÓDIGO | D65: DESCRIÇÃO | E65: UNIDADE | F65: COEFIC. | G65: CUSTO UNITÁRIO | I65: CUSTO TOTAL (A) + (B) + (C) + (D) + (E)
G66: DESONERADO | H66: NÃO DESONER. | I66: DESONERADO | J66: NÃO DESONER.
B67: COMPOSIÇÃO | C67: COMP 088_SEE | D67: TE DE FERRO GALVANIZADO 90º X 2.1/2" X 1" | E67: UN | I67: 75.73 | J67: 77.87
B68: AGETOP_I | C68: 8 | D68: AJUDANTE | E68: h | F68: 0.624 | G68: 8.2 | H68: 9.51 | I68: 5.12 | J68: 5.93
B69: AGETOP_I | C69: 11 | D69: ENCANADOR | E69: h | F69: 0.624 | G69: 13.4 | H69: 15.53 | I69: 8.36 | J69: 9.69
G70: 0 | H70: 0 | I70: 0 | J70: 0
B71: MÃO DE OBRA (B) - TOTAL | I71: 13.48 | J71: 15.62
B72: AGETOP_I | C72: H689 | D72: FITA VEDAROSCA 12 MM | E72: m | F72: 1.2 | G72: 0.28 | H72: 0.28 | I72: 0.34 | J72: 0.34
B73: SINAPI_I | C73: 6307 | D73: TE DE REDUCAO DE FERRO GALVANIZADO, COM ROSCA BSP, DE 2 1/2" X 1" | E73: UN | F73: 1 | G73: 61,91 | H73: 61.91 | I73: 61.91 | J73: 61.91
G74: 0 | H74: 0 | I74: 0 | J74: 0
B75: MATERIAL (C) - TOTAL | I75: 62.25 | J75: 62.25
A77: 30 | B77: FONTE | C77: CÓDIGO | D77: DESCRIÇÃO | E77: UNIDADE | F77: COEFIC. | G77: CUSTO UNITÁRIO | I77: CUSTO TOTAL (A) + (B) + (C) + (D) + (E)
G78: DESONERADO | H78: NÃO DESONER. | I78: DESONERADO | J78: NÃO DESONER.
B79: COMPOSIÇÃO | C79: COMP 030_SEE | D79: COTOVELO DE FERRO GALV. 90° X 2 1/2" | E79: UN | I79: 61.72 | J79: 64.89
B80: AGETOP_I | C80: 8 | D80: AJUDANTE | E80: h | F80: 0.92 | G80: 8.2 | H80: 9.51 | I80: 7.54 | J80: 8.75
B81: AGETOP_I | C81: 11 | D81: ENCANADOR | E81: h | F81: 0.92 | G81: 13.4 | H81: 15.53 | I81: 12.33 | J81: 14.29
B82: MÃO DE OBRA (B) - TOTAL | I82: 19.87 | J82: 23.04
B83: SINAPI_I | C83: 3470 | D83: COTOVELO 90 GRAUS DE FERRO GALVANIZADO, COM ROSCA BSP, DE 2 1/2" | E83: UN | F83: 1 | G83: 41,29 | H83: 41.29 | I83: 41.29 | J83: 41.29
B84: AGETOP_I | C84: H689 | D84: FITA VEDAROSCA 12 MM | E84: m | F84: 2 | G84: 0.28 | H84: 0.28 | I84: 0.56 | J84: 0.56
B85: MATERIAL (C) - TOTAL | I85: 41.85 | J85: 41.85
A87: 77 | B87: FONTE | C87: CÓDIGO | D87: DESCRIÇÃO | E87: UNIDADE | F87: COEFIC. | G87: CUSTO UNITÁRIO | I87: CUSTO TOTAL (A) + (B) + (C) + (D) + (E)
G88: DESONERADO | H88: NÃO DESONER. | I88: DESONERADO | J88: NÃO DESONER.
B89: COMPOSIÇÃO | C89: COMP 077_SEE | D89: UNIAO FERRO GALV C/ASSENTO CONICO BRONZE 2 1/2" | E89: UN | I89: 127.07 | J89: 128.44
B90: AGETOP_I | C90: 8 | D90: AJUDANTE | E90: h | F90: 0.4 | G90: 8.2 | H90: 9.51 | I90: 3.28 | J90: 3.8
B91: AGETOP_I | C91: 11 | D91: ENCANADOR | E91: h | F91: 0.4 | G91: 13.4 | H91: 15.53 | I91: 5.36 | J91: 6.21
B92: MÃO DE OBRA (B) - TOTAL | I92: 8.64 | J92: 10.01
B93: AGETOP_I | C93: H689 | D93: FITA VEDAROSCA 12 MM | E93: m | F93: 2.4 | G93: 0.28 | H93: 0.28 | I93: 0.67 | J93: 0.67
B94: SINAPI_I | C94: 12427 | D94: UNIAO COM ASSENTO CONICO DE BRONZE, DIAMETRO 2 1/2" | E94: UN | F94: 1 | G94: 117,76 | H94: 117.76 | I94: 117.76 | J94: 117.76
B95: MATERIAL (C) - TOTAL | I95: 118.43 | J95: 118.43
A97: 76 | B97: FONTE | C97: CÓDIGO | D97: DESCRIÇÃO | E97: UNIDADE | F97: COEFIC. | G97: CUSTO UNITÁRIO | I97: CUSTO TOTAL (A) + (B) + (C) + (D) + (E)
G98: DESONERADO | H98: NÃO DESONER. | I98: DESONERADO | J98: NÃO DESONER.
B99: COMPOSIÇÃO | C99: COMP 076_SEE | D99: CURVA FERRO GALVANIZADO 45G ROSCA MACHO/FEMEA REF. 2 1/2" | E99: UN | I99: 101.97 | J99: 105.14
B100: AGETOP_I | C100: 8 | D100: AJUDANTE | E100: h | F100: 0.92 | G100: 8.2 | H100: 9.51 | I100: 7.54 | J100: 8.75
B101: AGETOP_I | C101: 11 | D101: ENCANADOR | E101: h | F101: 0.92 | G101: 13.4 | H101: 15.53 | I101: 12.33 | J101: 14.29
B102: MÃO DE OBRA (B) - TOTAL | I102: 19.87 | J102: 23.04
B103: SINAPI_I | C103: 3148 | D103: FITA VEDA ROSCA EM ROLOS DE 18 MM X 50 M (L X C) | E103: UN | F103: 0.0491 | G103: 12,87 | H103: 12.87 | I103: 0.63 | J103: 0.63
B104: SINAPI_I | C104: 1784 | D104: CURVA 45 GRAUS DE FERRO GALVANIZADO, COM ROSCA BSP MACHO/FEMEA, DE 2 1/2" | E104: UN | F104: 1 | G104: 81,47 | H104: 81.47 | I104: 81.47 | J104: 81.47
B105: MATERIAL (C) - TOTAL | I105: 82.1 | J105: 82.1
A107: 22 | B107: FONTE | C107: CÓDIGO | D107: DESCRIÇÃO | E107: UNIDADE | F107: COEFIC. | G107: CUSTO UNITÁRIO | I107: CUSTO TOTAL (A) + (B) + (C) + (D) + (E)
G108: DESONERADO | H108: NÃO DESONER. | I108: DESONERADO | J108: NÃO DESONER.
B109: COMPOSIÇÃO | C109: COMP 022_SEE | D109: TAMPÃO FOFO 40X50CM C/INSCRIÇÃO | E109: UN | G109: - | H109: - | I109: 199.83 | J109: 200.15
B110: AGETOP_I | C110: 11 | D110: ENCANADOR | E110: h | F110: 0.15 | G110: 13.4 | H110: 15.53 | I110: 2.01 | J110: 2.33
G111: 0 | H111: 0 | I111: 0 | J111: 0
G112: 0 | H112: 0 | I112: 0 | J112: 0
B113: MÃO DE OBRA (B) - TOTAL | I113: 2.01 | J113: 2.33
B114: SINAPI_I | C114: 11293 | D114: TAMPAO FOFO SIMPLES COM BASE, CLASSE A15 CARGA MAX 1,5 T, 400 X 500 MM, COM INSCRICAO INCENDIO | E114: UN | F114: 1 | G114: 197,82 | H114: 197.82 | I114: 197.82 | J114: 197.82
G115: 0 | H115: 0 | I115: 0 | J115: 0
G116: 0 | H116: 0 | I116: 0 | J116: 0
B117: MATERIAL (C) - TOTAL | I117: 197.82 | J117: 197.82
A119: 24 | B119: FONTE | C119: CÓDIGO | D119: DESCRIÇÃO | E119: UNIDADE | F119: COEFIC. | G119: CUSTO UNITÁRIO | I119: CUSTO TOTAL (A) + (B) + (C) + (D) + (E)
G120: DESONERADO | H120: NÃO DESONER. | I120: DESONERADO | J120: NÃO DESONER.
B121: COMPOSIÇÃO | C121: COMP 024_SEE | D121: SINALIZADOR FOTOLUMINESCENTE PARA EXTINTOR | E121: UN | G121: - | H121: - | I121: 25.27 | J121: 25.39
B122: AGETOP_I | C122: 5 | D122: SERVENTE | E122: h | F122: 0.09 | G122: 8.2 | H122: 9.51 | I122: 0.74 | J122: 0.86
G123: 0 | H123: 0 | I123: 0 | J123: 0
G124: 0 | H124: 0 | I124: 0 | J124: 0
B125: MÃO DE OBRA (B) - TOTAL | I125: 0.74 | J125: 0.86
B126: AGETOP_I | C126: 3070 | D126: BUCHA DE NYLON S-6 | E126: un | F126: 2 | G126: 0.04 | H126: 0.04 | I126: 0.08 | J126: 0.08
B127: AGETOP_I | C127: 3393 | D127: PARAFUSO P/BUCHA S-6 | E127: un | F127: 2 | G127: 0.08 | H127: 0.08 | I127: 0.16 | J127: 0.16
B128: SINAPI_I | C128: 37556 | D128: PLACA DE SINALIZACAO DE SEGURANCA CONTRA INCENDIO, FOTOLUMINESCENTE, QUADRADA, *20 X 20* CM, EM PVC *2* MM ANTI-CHAMAS (SIMBOLOS, CORES E PICTOGRAMAS CONFORME NBR 13434) | E128: UN | F128: 1 | G128: 24,29 | H128: 24.29 | I128: 24.29 | J128: 24.29
B129: MATERIAL (C) - TOTAL | I129: 24.53 | J129: 24.53
A131: 186 | B131: FONTE | C131: CÓDIGO | D131: DESCRIÇÃO | E131: UNIDADE | F131: COEFIC. | G131: CUSTO UNITÁRIO | I131: CUSTO TOTAL (A) + (B) + (C) + (D) + (E)
G132: DESONERADO | H132: NÃO DESONER. | I132: DESONERADO | J132: NÃO DESONER.
B133: COMPOSIÇÃO | C133: COMP 186_SEE | D133: BOTOEIRA BOMBA DE INCÊNDIO C/ MARTELO CONVENCIONAL/ ANALÓGICA | E133: UN | I133: 85.1 | J133: 88.54
B134: AGETOP_I | C134: 8 | D134: AJUDANTE | E134: h | F134: 1 | G134: 8.2 | H134: 9.51 | I134: 8.2 | J134: 9.51
B135: AGETOP_I | C135: 12 | D135: ELETRICISTA | E135: h | F135: 1 | G135: 13.4 | H135: 15.53 | I135: 13.4 | J135: 15.53
G136: 0 | H136: 0 | I136: 0 | J136: 0
B137: MÃO DE OBRA (B) - TOTAL | I137: 21.6 | J137: 25.04
B138: COTAÇÃO | C138: COT 088_SEE | D138: BOTOEIRA BOMBA DE INCÊNDIO C/ MARTELO CONVENCIONAL/ ANALÓGICA | E138: UN | F138: 1 | G138: 63.5 | H138: 63.5 | I138: 63.5 | J138: 63.5
G139: 0 | H139: 0 | I139: 0 | J139: 0
G140: 0 | H140: 0 | I140: 0 | J140: 0
B141: MATERIAL (C) - TOTAL | I141: 63.5 | J141: 63.5
A143: 188 | B143: FONTE | C143: CÓDIGO | D143: DESCRIÇÃO | E143: UNIDADE | F143: COEFIC. | G143: CUSTO UNITÁRIO | I143: CUSTO TOTAL (A) + (B) + (C) + (D) + (E)
G144: DESONERADO | H144: NÃO DESONER. | I144: DESONERADO | J144: NÃO DESONER.
B145: COMPOSIÇÃO | C145: COMP 188_SEE | D145: ACIONADOR MANUAL DE ALARME | E145: UN | I145: 100.61 | J145: 103.36
B146: AGETOP_I | C146: 8 | D146: AJUDANTE | E146: h | F146: 0.8 | G146: 8.2 | H146: 9.51 | I146: 6.56 | J146: 7.61
B147: AGETOP_I | C147: 12 | D147: ELETRICISTA | E147: h | F147: 0.8 | G147: 13.4 | H147: 15.53 | I147: 10.72 | J147: 12.42
G148: 0 | H148: 0 | I148: 0 | J148: 0
B149: MÃO DE OBRA (B) - TOTAL | I149: 17.28 | J149: 20.03
B150: COTAÇÃO | C150: COT 090_SEE | D150: ACIONADOR MANUAL DE ALARME | E150: UN | F150: 1 | G150: 83.33333333 | H150: 83.33333333 | I150: 83.33 | J150: 83.33
G151: 0 | H151: 0 | I151: 0 | J151: 0
G152: 0 | H152: 0 | I152: 0 | J152: 0
B153: MATERIAL (C) - TOTAL | I153: 83.33 | J153: 83.33
A155: 190 | B155: FONTE | C155: CÓDIGO | D155: DESCRIÇÃO | E155: UNIDADE | F155: COEFIC. | G155: CUSTO UNITÁRIO | I155: CUSTO TOTAL (A) + (B) + (C) + (D) + (E)
G156: DESONERADO | H156: NÃO DESONER. | I156: DESONERADO | J156: NÃO DESONER.
B157: COMPOSIÇÃO | C157: COMP 190_SEE | D157: CENTRAL DE DETECÇÃO E ALARME DE 40 SETORES COM BATERIA | E157: UN | I157: 1136.13 | J157: 1163.65
B158: AGETOP_I | C158: 8 | D158: AJUDANTE | E158: h | F158: 8 | G158: 8.2 | H158: 9.51 | I158: 65.6 | J158: 76.08
B159: AGETOP_I | C159: 12 | D159: ELETRICISTA | E159: h | F159: 8 | G159: 13.4 | H159: 15.53 | I159: 107.2 | J159: 124.24
G160: 0 | H160: 0 | I160: 0 | J160: 0
B161: MÃO DE OBRA (B) - TOTAL | I161: 172.8 | J161: 200.32
B162: COTAÇÃO | C162: COT 092_SEE | D162: CENTRAL DE DETECÇÃO E ALARME DE 40 SETORES COM BATERIA (PREÇO MÉDIO) | E162: UN | F162: 1 | G162: 963.3333333 | H162: 963.3333333 | I162: 963.33 | J162: 963.33
G163: 0 | H163: 0 | I163: 0 | J163: 0
G164: 0 | H164: 0 | I164: 0 | J164: 0
B165: MATERIAL (C) - TOTAL | I165: 963.33 | J165: 963.33
A167: 25 | B167: FONTE | C167: CÓDIGO | D167: DESCRIÇÃO | E167: UNIDADE | F167: COEFIC. | G167: CUSTO UNITÁRIO | I167: CUSTO TOTAL (A) + (B) + (C) + (D) + (E)
G168: DESONERADO | H168: NÃO DESONER. | I168: DESONERADO | J168: NÃO DESONER.
B169: COMPOSIÇÃO | C169: COMP 025_SEE | D169: SINALIZADOR FOTOLUMINESCENTE DE EMERGÊNCIA | E169: UN | G169: - | H169: - | I169: 25.27 | J169: 25.39
B170: AGETOP_I | C170: 5 | D170: SERVENTE | E170: h | F170: 0.09 | G170: 8.2 | H170: 9.51 | I170: 0.74 | J170: 0.86
B171: MÃO DE OBRA (B) - TOTAL | I171: 0.74 | J171: 0.86
B172: AGETOP_I | C172: 3070 | D172: BUCHA DE NYLON S-6 | E172: un | F172: 2 | G172: 0.04 | H172: 0.04 | I172: 0.08 | J172: 0.08
B173: AGETOP_I | C173: 3393 | D173: PARAFUSO P/BUCHA S-6 | E173: un | F173: 2 | G173: 0.08 | H173: 0.08 | I173: 0.16 | J173: 0.16
B174: SINAPI_I | C174: 37556 | D174: PLACA DE SINALIZACAO DE SEGURANCA CONTRA INCENDIO, FOTOLUMINESCENTE, QUADRADA, *20 X 20* CM, EM PVC *2* MM ANTI-CHAMAS (SIMBOLOS, CORES E PICTOGRAMAS CONFORME NBR 13434) | E174: UN | F174: 1 | G174: 24,29 | H174: 24.29 | I174: 24.29 | J174: 24.29
B175: MATERIAL (C) - TOTAL | I175: 24.53 | J175: 24.53
A177: 277 | B177: FONTE | C177: CÓDIGO | D177: DESCRIÇÃO | E177: UNIDADE | F177: COEFIC. | G177: CUSTO UNITÁRIO | I177: CUSTO TOTAL (A) + (B) + (C) + (D) + (E)
G178: DESONERADO | H178: NÃO DESONER. | I178: DESONERADO | J178: NÃO DESONER.
B179: COMPOSIÇÃO | C179: COMP 277_SEE | D179: MARCAÇÃO NO PISO - 1X1 M PARA EXTINTOR | E179: M2 | I179: 28 | J179: 28.08
B180: AGETOP_I | C180: 5 | D180: SERVENTE | E180: h | F180: 0.0333 | G180: 8.2 | H180: 9.51 | I180: 0.27 | J180: 0.32
G181: 0 | H181: 0 | I181: 0 | J181: 0
G182: 0 | H182: 0 | I182: 0 | J182: 0
B183: MÃO DE OBRA (B) - TOTAL | I183: 0.27 | J183: 0.32
B184: SINAPI_I | C184: 5318 | D184: SOLVENTE DILUENTE A BASE DE AGUARRAS | E184: L | F184: 0.13 | G184: 11,97 | H184: 11.97 | I184: 1.56 | J184: 1.56
B185: SINAPI | C185: 5824 | D185: CAMINHÃO TOCO, PBT 16.000 KG, CARGA ÚTIL MÁX. 10.685 KG, DIST. ENTRE EIXOS 4,8 M, POTÊNCIA 189 CV, INCLUSIVE CARROCERIA FIXA ABERTA DE MADEIRA P/ TRANSPORTE GERAL DE CARGA SECA, DIMEN. APROX. 2,5 X 7,00 X 0,50 M - CHP DIURNO. AF_06/2014 | E185: CHP | F185: 0.0033 | G185: 136.72 | H185: 139.93 | I185: 0.45 | J185: 0.46
B186: SINAPI_I | C186: 7343 | D186: TINTA A BASE DE RESINA ACRILICA, PARA SINALIZACAO HORIZONTAL VIARIA (NBR 11862) | E186: L | F186: 0.6 | G186: 11,17 | H186: 11.17 | I186: 6.7 | J186: 6.7
B187: SINAPI_I | C187: 7348 | D187: TINTA ACRILICA PREMIUM PARA PISO | E187: L | F187: 0.03 | G187: 12,00 | H187: 12 | I187: 0.36 | J187: 0.36
B188: SINAPI_I | C188: 25972 | D188: MICROESFERAS DE VIDRO PARA SINALIZACAO HORIZONTAL VIARIA, TIPO I-B (PREMIX) - NBR 16184 | E188: KG | F188: 2.14 | G188: 8,55 | H188: 8.55 | I188: 18.3 | J188: 18.3
B189: SINAPI | C189: 95133 | D189: MÁQUINA DEMARCADORA DE FAIXA DE TRÁFEGO À FRIO, AUTOPROPELIDA, POTÊNCIA 38 HP - CHP DIURNO. AF_07/2016 | E189: CHP | F189: 0.0033 | G189: 110.22 | H189: 113.8 | I189: 0.36 | J189: 0.38
B190: MATERIAL (C) - TOTAL | I190: 27.73 | J190: 27.76
A192: 80 | B192: FONTE | C192: CÓDIGO | D192: DESCRIÇÃO | E192: UNIDADE | F192: COEFIC. | G192: CUSTO UNITÁRIO | I192: CUSTO TOTAL (A) + (B) + (C) + (D) + (E)
G193: DESONERADO | H193: NÃO DESONER. | I193: DESONERADO | J193: NÃO DESONER.
B194: COMPOSIÇÃO | C194: COMP 080_SEE | D194: BUCHA REDUCAO FERRO GALV ROSCA REF. 2 1/2"X1" | E194: UN | I194: 26.69 | J194: 27.65
B195: AGETOP_I | C195: 8 | D195: AJUDANTE | E195: h | F195: 0.28 | G195: 8.2 | H195: 9.51 | I195: 2.3 | J195: 2.66
B196: AGETOP_I | C196: 11 | D196: ENCANADOR | E196: h | F196: 0.28 | G196: 13.4 | H196: 15.53 | I196: 3.75 | J196: 4.35
B197: MÃO DE OBRA (B) - TOTAL | I197: 6.05 | J197: 7.01
B198: SINAPI_I | C198: 3148 | D198: FITA VEDA ROSCA EM ROLOS DE 18 MM X 50 M (L X C) | E198: UN | F198: 0.0245 | G198: 12,87 | H198: 12.87 | I198: 0.32 | J198: 0.32
B199: SINAPI_I | C199: 773 | D199: BUCHA DE REDUCAO DE FERRO GALVANIZADO, COM ROSCA BSP, DE 2 1/2" X 1" | E199: UN | F199: 1 | G199: 20,32 | H199: 20.32 | I199: 20.32 | J199: 20.32
B200: MATERIAL (C) - TOTAL | I200: 20.64 | J200: 20.64
A202: 89 | B202: FONTE | C202: CÓDIGO | D202: DESCRIÇÃO | E202: UNIDADE | F202: COEFIC. | G202: CUSTO UNITÁRIO | I202: CUSTO TOTAL (A) + (B) + (C) + (D) + (E)
G203: DESONERADO | H203: NÃO DESONER. | I203: DESONERADO | J203: NÃO DESONER.
B204: COMPOSIÇÃO | C204: COMP 089_SEE | D204: TE DE REDUCAO 90 GRAUS SOLDAVEL 60 X 50 MM | E204: UN | I204: 69.54 | J204: 70.75
B205: AGETOP_I | C205: 8 | D205: AJUDANTE | E205: h | F205: 0.35 | G205: 8.2 | H205: 9.51 | I205: 2.87 | J205: 3.33
B206: AGETOP_I | C206: 11 | D206: ENCANADOR | E206: h | F206: 0.35 | G206: 13.4 | H206: 15.53 | I206: 4.69 | J206: 5.44
G207: 0 | H207: 0 | I207: 0 | J207: 0
B208: MÃO DE OBRA (B) - TOTAL | I208: 7.56 | J208: 8.77
B209: COTAÇÃO | C209: COT 018_SEE | D209: TE DE REDUCAO 90 GRAUS SOLDAVEL 60 X 50 MM | E209: UN | F209: 1 | G209: 61.98 | H209: 61.98 | I209: 61.98 | J209: 61.98
G210: 0 | H210: 0 | I210: 0 | J210: 0
G211: 0 | H211: 0 | I211: 0 | J211: 0
B212: MATERIAL (C) - TOTAL | I212: 61.98 | J212: 61.98
A214: 40 | B214: FONTE | C214: CÓDIGO | D214: DESCRIÇÃO | E214: UNIDADE | F214: COEFIC. | G214: CUSTO UNITÁRIO | I214: CUSTO TOTAL (A) + (B) + (C) + (D) + (E)
G215: DESONERADO | H215: NÃO DESONER. | I215: DESONERADO | J215: NÃO DESONER.
B216: COMPOSIÇÃO | C216: COMP 040_SEE | D216: CONJUNTO MOTOR-BOMBA ELÉTRICA TRIFÁSICO 380/220 V PARA VZ= 24,33 M³/H, HM= 46,24 M POTÊNCIA= 7,5 CV | E216: UN | I216: 3965.47 | J216: 3992.99
B217: AGETOP_I | C217: 8 | D217: AJUDANTE | E217: h | F217: 8 | G217: 8.2 | H217: 9.51 | I217: 65.6 | J217: 76.08
B218: AGETOP_I | C218: 11 | D218: ENCANADOR | E218: h | F218: 8 | G218: 13.4 | H218: 15.53 | I218: 107.2 | J218: 124.24
G219: 0 | H219: 0 | I219: 0 | J219: 0
B220: MÃO DE OBRA (B) - TOTAL | I220: 172.8 | J220: 200.32
B221: COTAÇÃO | C221: COT 008_SEE | D221: CONJUNTO MOTOR-BOMBA ELÉTRICA TRIFÁSICO 380/220 V PARA VZ= 24,33 M³/H, HM= 46,24 M POTÊNCIA= 7,5 CV | E221: UN | F221: 1 | G221: 3792.666667 | H221: 3792.666667 | I221: 3792.67 | J221: 3792.67
G222: 0 | H222: 0 | I222: 0 | J222: 0
G223: 0 | H223: 0 | I223: 0 | J223: 0
B224: MATERIAL (C) - TOTAL | I224: 3792.67 | J224: 3792.67
... 121 more rows
